Cogmind - Beta 15 @@@ ROGUE MODE // 2025.08.21 @ 14:15:07 Player: human Result: Escaped! Performance ------------- Evolutions (9) 4500 Regions Visited (35) 7000 Robots Destroyed (618) 3090 Value Destroyed (35000) 35000 Prototype IDs (47) 940 Alien Tech Used (3) 600 Bonus (27633) 27633 TOTAL SCORE: 78763 Bonus ------- High Alert Combat Kills 7830 Follower Combat Kills 2847 Entered Garrisons 600 Network Hubs Disabled 400 Met Imprinter 300 Acquired ECA 300 Met Zhirov 300 Met Warlord at Base 500 MAIN.C Attacked Warlord 500 Warlord Defense Kills 2070 Built Enhanced Grunts 300 A7 Reached Mainframe 300 Met R17 at Cetus 500 Met R17 at Research 2000 Scanned by Researcher 500 Acquired SGEMP 2000 Delivered SGEMP 2000 Destroyed MAIN.C Guards 500 Met Warlord at Command 2000 Win 3000 Friendly Fire -1114 Cogmind --------- Core Integrity 401/1600 Matter 300/300 Energy 99/100 System Corruption 35% Temperature Cool (0) Movement Core (50) Location To Epsilon Eridani Parts ------- > --- POWER (1) -------- (None) > --- PROPULSION (6) --- Armored Heavy Treads > --- UTILITY (12) ----- Advanced Signal Interpreter Advanced Terrain Scan Processor Experimental Targeting Computer Experimental Core Analyzer Experimental Core Analyzer Experimental Core Analyzer Experimental Core Analyzer > --- WEAPON (6) ------- (None) > --- INVENTORY (5) ---- Quantum Reactor Armored Heavy Treads Matter Compressor (250) Peak State ------------ > --- POWER ------------ Light Quantum Reactor > --- PROPULSION ------- Biometal Heavy Treads Biometal Heavy Treads Advanced Heavy Siege Treads > --- UTILITY ---------- Huge Storage Unit Advanced Signal Interpreter Advanced Terrain Scan Processor 0b10 Decoder Chip [Looter] Experimental Targeting Computer Experimental Target Analyzer Experimental Core Analyzer Advanced Weapon Cycler Centrium Light Armor Plating Centrium Light Armor Plating Centrium Light Armor Plating Centrium Light Armor Plating > --- WEAPON ----------- Hypervelocity Railgun Hypervelocity Railgun Hypervelocity Railgun Hypervelocity Railgun Helical Railgun Enhanced Hardcell Cannon > --- INVENTORY -------- Particle Reactor Advanced Heavy Treads Biometal Heavy Treads Advanced Energy Well Matter Compressor Advanced Sensor Array Advanced Sensor Array Long-range Terrain Scanner Seismic Detector Experimental Targeting Computer Centrium Light Armor Plating Long-range Tractor Beam Hacking Drone Bay Phasing AFG Dimensional Node Initializer Transdimensional Reconstructor Railgun Helical Railgun Fusion Bomb Launcher [Rating: 213] Favorites ----------- Power Quantum Reactor Engine Improved Deuterium Engine Power Core Light Nuclear Core Reactor Quantum Reactor Propulsion Centrium Heavy Treads Treads Centrium Heavy Treads Wheel Compact Wheel Utility Huge Storage Unit Device Improved Heat Sink Storage Huge Storage Unit Processor Core Analyzer Hackware Experimental System Shield Protection Centrium Medium Armor Plating Weapon Advanced KE Penetrator Energy Gun Wave Gun Energy Cannon Matter Neutralizer Ballistic Gun Advanced KE Penetrator Ballistic Cannon Advanced Assault Cannon Launcher Fusion Bomb Launcher Impact Weapon Power Maul Slashing Weapon Nanosword Piercing Weapon Spear Special Melee Weapon Datajack Build | -11 -10 -10 -9 -9 -8 -8 -7 -7 -7 -7 -7 -7 -6 -6 -6 -6 -6 -6 -5 -5 -5 -5 -4 -4 -4 -4 -4 -3 -3 -3 -3 -2 -2 -1 -1 ------- Run | Yrd Mat Min Mat Min Mat Gar Fac Gar Fac Low Low Zio Pro Fac Ext Cet Arc Hub Fac Upp Upp War Pro Fac Upp Upp Zhi Pro Res Gar Res Res Tes Acc Com Slots Evolved 18 | . . . 2 . 2 . 2 . . . . . . 2 . . . . 2 . . . . 2 . . . . 2 . . 2 . 2 . Power . | . . . . . . . . . . . . . . . . . . . . . . . . . . . . . . . . . . . . Propulsion 4 | . . . . . . . 1 . . . . . . 1 . . . . . . . . . 2 . . . . . . . . . . . Utility 10 | . . . 1 . 1 . 1 . . . . . . 1 . . . . 1 . . . . . . . . . 2 . . 1 . 2 . Weapon 4 | . . . 1 . 1 . . . . . . . . . . . . . 1 . . . . . . . . . . . . 1 . . . Parts Attached 394 | 5 7 6 19 1 18 8 4 28 4 2 7 7 1 34 11 8 6 4 7 2 1 4 6 2 4 1 6 2 32 21 32 21 10 23 40 Power 31 | 1 1 . 4 . 2 . . 3 . . 1 . . 2 2 1 . 1 . . . . . . . . 1 . 1 1 4 . 2 2 2 Engine 12 | 1 . . 3 . 2 . . 1 . . 1 . . 2 2 . . . . . . . . . . . . . . . . . . . . Core 5 | . 1 . 1 . . . . 2 . . . . . . . . . . . . . . . . . . . . . . . . . . 1 Reactor 14 | . . . . . . . . . . . . . . . . 1 . 1 . . . . . . . . 1 . 1 1 4 . 2 2 1 Propulsion 81 | 2 2 2 3 . 3 3 2 7 1 . 1 . . 8 2 2 1 . . . . . . 1 . . 2 . 6 5 4 8 . 6 10 Treads 64 | 2 2 . . . . . . 5 . . 1 . . 7 2 2 1 . . . . . . 1 . . 2 . 6 5 4 8 . 6 10 Leg . | . . . . . . . . . . . . . . . . . . . . . . . . . . . . . . . . . . . . Wheel 17 | . . 2 3 . 3 3 2 2 1 . . . . 1 . . . . . . . . . . . . . . . . . . . . . Hover . | . . . . . . . . . . . . . . . . . . . . . . . . . . . . . . . . . . . . Flight . | . . . . . . . . . . . . . . . . . . . . . . . . . . . . . . . . . . . . Utility 152 | 1 1 3 4 1 5 1 1 10 2 1 2 7 . 12 4 3 4 3 4 1 1 . 4 1 3 1 3 1 16 10 13 8 6 5 10 Device 48 | . . 1 . . 3 . 1 4 . . 1 3 . 2 1 . 3 . 3 1 1 . 3 . 1 1 1 . 6 1 4 2 . 2 3 Storage 8 | 1 1 . 1 . . . . 1 . . . . . . . . . 1 . . . . . . . . . . 1 . 1 . . . 1 Processor 33 | . . . . . . . . 2 2 . . 3 . 2 . . . . . . . . . . 2 . . . 4 2 4 3 4 1 4 Hackware 13 | . . . . . 1 1 . . . . . . . 5 1 . . 2 1 . . . . . . . . . 1 . . . 1 . . Protection 50 | . . 2 3 1 1 . . 3 . 1 1 1 . 3 2 3 1 . . . . . 1 1 . . 2 1 4 7 4 3 1 2 2 Artifact . | . . . . . . . . . . . . . . . . . . . . . . . . . . . . . . . . . . . . Weapon 130 | 1 3 1 8 . 8 4 1 8 1 1 3 . 1 12 3 2 1 . 3 1 . 4 2 . 1 . . 1 9 5 11 5 2 10 18 Energy Gun 14 | . 1 . 1 . 1 . 1 1 . . . . . . . . . . . . . 1 . . 1 . . . . . 1 . 1 . 5 Energy Cannon 3 | . . . . . . . . . . . . . . 1 . . . . . . . . . . . . . . . . . . . . 2 Ballistic Gun 83 | 1 2 . 4 . 6 2 . 6 . . 2 . 1 8 2 2 1 . 3 1 . 2 2 . . . . . 7 5 8 4 1 8 5 Ballistic Cannon 9 | . . 1 . . . . . 1 . 1 1 . . 1 . . . . . . . . . . . . . . . . . . . 2 2 Launcher 12 | . . . 2 . 1 1 . . . . . . . . . . . . . . . 1 . . . . . . 2 . 1 1 . . 3 Special Weapon . | . . . . . . . . . . . . . . . . . . . . . . . . . . . . . . . . . . . . Impact Weapon 2 | . . . 1 . . . . . . . . . . . . . . . . . . . . . . . . 1 . . . . . . . Slashing Weapon 2 | . . . . . . . . . . . . . . 1 . . . . . . . . . . . . . . . . 1 . . . . Piercing Weapon 3 | . . . . . . . . . 1 . . . . 1 . . . . . . . . . . . . . . . . . . . . 1 Special Melee Weapon 2 | . . . . . . 1 . . . . . . . . 1 . . . . . . . . . . . . . . . . . . . . Unidentified Prototypes 39 | . . 1 2 . 2 . . 1 . . . 6 . 2 . 3 . 1 . . . 1 2 . 2 . 4 . 3 . 1 . 2 . 6 Corrupted Parts 3 | . . . . . . . . . . . . . . . . . 1 1 . . . . . . . . . . . . . 1 . . . System Corruption 25 | . . . . . . . . . . . . . . . . . 12 10 . . . . . . . . . . . . . 3 . . . Parts Lost 215 | . 1 . 6 1 9 8 2 18 . 1 7 . 1 18 5 1 . . 2 . 1 5 1 2 2 . . 1 15 23 7 3 7 30 38 Power 20 | . 1 . 2 . 1 . . 2 . . 1 . . 3 2 . . . . . . . . . . . . . . 1 1 . 1 2 3 Propulsion 44 | . . . 3 . 1 3 1 3 . . 2 . . 4 . 1 . . . . . . . . . . . . 5 3 2 . . 5 11 Utility 60 | . . . 1 1 2 2 . 6 . . 1 . . 2 . . . . . . 1 . 1 . 1 . . 1 7 9 2 2 2 9 10 Weapon 91 | . . . . . 5 3 1 7 . 1 3 . 1 9 3 . . . 2 . . 5 . 2 1 . . . 3 10 2 1 4 14 14 Highest Loss Streak 17 | . 1 . 1 1 5 3 2 5 . 1 5 . 1 8 3 1 . . 1 . 1 3 1 1 2 . . 1 2 9 2 1 4 17 16 To Critical Strikes 6 | . . . . . . . . . . . . . . . . 1 . . . . . . . . . . . . 2 1 . . . 1 1 Average Backups 20 | 2 11 14 23 24 23 23 24 19 21 20 19 21 23 23 19 18 21 23 22 21 22 22 20 20 19 22 23 22 22 21 23 21 21 17 6 Power 1 | . 1 1 1 2 . 1 3 1 1 1 . . 1 . . . 1 1 1 1 1 1 1 1 1 1 1 1 1 1 1 . . . 1 Propulsion 1 | 1 4 3 2 2 2 1 . 1 3 3 2 2 2 2 2 2 2 2 2 2 2 2 2 1 1 2 3 2 2 . 1 2 2 2 . Utility 10 | . 1 4 9 10 11 11 11 10 12 11 11 13 14 13 10 9 10 12 12 12 12 12 13 14 14 15 14 13 11 10 13 9 11 9 1 Weapon 5 | 1 4 5 9 9 7 8 8 5 5 5 3 4 5 4 6 5 6 7 5 5 5 6 4 4 2 3 4 4 5 6 6 7 5 2 1 Tool/Special . | . . . . . . . . . . . . . . . . . . . . . . . . . . . . . . . . . . . . Unused Backups 81 | . 3 6 6 2 1 1 2 5 . . . 3 . 3 2 6 . . 1 . 1 1 . . . 1 3 1 10 . 12 4 1 . 6 Power 6 | . . . . . . . . 1 . . . . . 1 . . . . . . . . . . . . . . . . 2 . . . 2 Propulsion 12 | . . 3 . . . . . . . . . . . . 1 3 . . . . . . . . . . . 1 1 . . 2 . . 1 Utility 31 | . 1 . . 1 . 1 1 2 . . . 2 . 1 . 1 . . 1 . . . . . . . 3 . 5 . 8 1 1 . 2 Weapon 30 | . 2 3 6 1 1 . 1 2 . . . 1 . 1 1 2 . . . . . . . . . 1 . . 4 . 2 1 . . 1 Tool/Special 2 | . . . . . . . . . . . . . . . . . . . . . 1 1 . . . . . . . . . . . . . Average Slot Usage (%) 87 | . 99 100 93 99 93 99 88 91 100 92 88 91 91 83 97 87 86 86 87 88 88 87 87 79 83 84 86 88 89 74 88 84 84 81 70 Engine 2 | . 8 . 8 11 7 9 7 3 7 7 6 7 7 5 5 1 . . . . . . . . . . . . . . . . . . . Reactor 2 | . . . . . . . . . . . . . . . . 4 6 6 5 5 5 5 5 5 5 5 5 5 4 3 4 4 3 3 1 Treads 11 | . 28 12 . . . . . 9 1 . 4 7 7 18 25 14 13 13 11 11 11 11 11 11 15 15 18 21 19 9 18 13 13 11 11 Wheel 4 | . . 15 17 22 17 17 17 5 20 23 11 7 7 . . . . . . . . . . . . . . . . . . . . . . Device 9 | . . . . . 7 18 17 18 9 13 11 13 14 8 6 . 5 4 7 15 16 9 10 11 11 15 11 11 9 2 7 6 5 6 8 Storage 6 | . 27 16 11 11 9 9 7 7 7 7 7 7 7 6 6 6 6 6 5 5 5 5 5 5 5 5 5 5 4 4 4 4 4 4 3 Processor 12 | . . . . . . . . 4 20 15 15 11 7 10 13 13 13 13 11 11 11 11 11 10 10 10 10 10 14 20 22 19 21 24 28 Hackware 1 | . . . . . 5 5 . . . . . . . 8 6 6 6 12 9 1 . . . . . . . . 2 . . . 2 . . Protection 6 | . . 11 21 21 11 3 7 5 . 1 . 4 7 3 5 12 7 2 4 4 5 12 11 8 8 5 8 8 7 7 6 9 7 9 1 Energy Gun 1 | . 4 . 1 . 4 7 . 1 . . . . . . . . . . . . . . . . 3 5 5 5 . 2 . . 2 . 3 Ballistic Gun 19 | . 23 25 20 22 27 25 21 22 23 15 11 15 15 11 22 26 26 25 26 27 29 28 28 25 22 21 21 15 19 19 19 22 22 17 7 Ballistic Cannon 2 | . . 2 10 11 1 . 6 4 5 3 12 10 5 . . . . . . . . . . . . . . . . . . . . 1 2 Peak Build Rating 213 | 5 15 24 27 27 37 40 38 72 54 58 68 74 71 97 82 126 129 129 139 142 142 142 144 158 166 164 164 152 172 156 161 196 199 213 201 Average Rating 108 | 3 11 16 25 25 30 35 34 52 51 53 59 66 69 80 78 114 124 124 135 138 140 140 140 146 161 163 155 148 158 130 148 179 190 190 152 On Entrance 96 | . 5 15 18 27 25 36 33 38 51 54 58 64 71 63 74 77 126 129 126 134 140 142 128 141 151 162 163 152 146 131 142 156 192 183 134 Naked Turns . | . . . . . . . . . . . . . . . . . . . . . . . . . . . . . . . . . . . . Heaviest Build 187 | 11 36 43 110 110 116 110 112 117 114 121 129 129 125 131 104 98 138 138 147 148 144 149 146 144 150 144 149 149 158 162 171 183 145 153 187 Greatest Support 240 | 40 46 46 32 32 32 32 36 95 36 36 36 16 75 150 108 160 160 160 160 160 160 160 160 240 240 240 240 210 230 230 201 230 230 230 200 Greatest Overweight (x) 20 | . . 2 10 3 3 10 4 20 4 3 8 8 7 11 . 1 1 . . . . . . . . . . . . 1 . 1 . 1 2 Average Overweight (x) 1 | . . . 5 3 2 3 3 1 2 2 5 6 5 . . . . . . . . . . . . . . . . . . . . . . Largest Inventory Capacity 25 | 8 15 15 25 25 25 25 25 25 25 25 25 25 25 25 25 20 25 25 25 25 25 25 25 25 25 25 25 25 25 25 25 25 25 25 25 Average Capacity 23 | 6 14 15 24 25 25 25 25 21 25 25 25 25 25 25 20 20 24 25 25 25 25 25 25 25 25 25 25 25 25 25 25 25 25 25 13 Most Carried 25 | 5 15 15 25 25 25 25 25 25 25 25 25 25 25 25 25 20 25 25 25 25 25 25 24 23 22 25 25 25 25 25 25 25 25 22 17 Average Carried 21 | 3 11 14 23 24 23 23 24 21 24 24 22 24 25 23 20 19 23 24 24 23 24 24 22 22 20 23 24 24 24 21 24 23 24 18 6 Final Capacity 25 | 8 15 15 25 25 25 25 25 25 25 25 25 25 25 25 20 20 25 25 25 25 25 25 25 25 25 25 25 25 25 25 25 25 25 25 5 Final Carried 25 | 5 14 15 25 24 25 23 25 25 24 25 23 25 25 25 20 20 25 25 25 25 24 25 22 23 22 25 25 24 25 25 23 25 25 11 4 Class Distribution -------------------- 40% | Scavenger-Tank 13% | Scavenger-Executioner 12% | Tank 6% | Scavenger-Gunner 4% | Mutant 3% | Scavenger-Mutant 3% | Skirmisher 3% | Gunner Dominant Class ---------------- Mutant | -10/Materials Mutant | -10/Mines Tank | -9/Materials Tank | -9/Mines Scavenger-Tank | -8/Materials Gunner | -8/Garrison Scavenger-Tank | -7/Factory Scavenger-Tank | -7/Garrison Scavenger-Gunner | -7/Factory Scavenger-Skirmisher | -7/Lower Caves Scavenger-Tank | -7/Lower Caves Tank | -7/Zion Tank | -6/Proximity Caves Hacker-Mutant | -6/Factory Commander-Skirmisher | -6/Extension Commander-Tank | -6/Cetus Scavenger-Tank | -6/Archives Hacker-Skirmisher | -6/Hub_04(d) Scavenger-Tank | -5/Factory Scavenger-Tank | -5/Upper Caves Scavenger-Tank | -5/Upper Caves Scavenger-Tank | -5/Warlord Scavenger-Tank | -4/Proximity Caves Scavenger-Tank | -4/Factory Scavenger-Tank | -4/Upper Caves Scavenger-Tank | -4/Upper Caves Scavenger-Tank | -4/Zhirov Scavenger-Tank | -3/Proximity Caves Scavenger-Tank | -3/Research Scavenger-Gunner | -3/Garrison Scavenger-Assassin | -3/Research Scavenger-Executioner | -2/Research Scavenger-Executioner | -2/Testing Scavenger-Executioner | -1/Access Scavenger-Executioner | -1/Command Resources | -11 -10 -10 -9 -9 -8 -8 -7 -7 -7 -7 -7 -7 -6 -6 -6 -6 -6 -6 -5 -5 -5 -5 -4 -4 -4 -4 -4 -3 -3 -3 -3 -2 -2 -1 -1 ----------- Run | Yrd Mat Min Mat Min Mat Gar Fac Gar Fac Low Low Zio Pro Fac Ext Cet Arc Hub Fac Upp Upp War Pro Fac Upp Upp Zhi Pro Res Gar Res Res Tes Acc Com Matter Collected 31820 | 208 473 152 684 437 1038 1096 174 2243 163 207 637 137 440 1320 1185 236 253 157 587 387 178 637 350 133 355 27 80 217 2529 1659 4602 1197 2264 3233 2145 Remotely 7554 | . . . . . . . . . . . 178 . 155 488 . . . . . . 133 279 . . . . . . 170 . 2679 . 1243 2229 . Salvage Created 32731 | . 600 147 580 239 1174 1292 157 2230 136 172 617 . 415 861 1091 307 331 107 1717 241 233 1037 257 133 596 83 127 194 2887 2017 3801 624 1441 4902 1985 Parts 1561 | . 42 7 50 23 42 61 9 99 11 8 18 . 17 52 44 13 31 6 80 7 15 50 14 8 20 5 . 8 130 96 208 21 94 185 87 Haulers Intercepted 7 | . 1 . 4 . 2 . . . . . . . . . . . . . . . . . . . . . . . . . . . . . . Recyclers Shooed 9 | . . . . . 2 . . . . . . . . . 1 . . . 2 . . . . 1 . . . . . . 1 . . 1 1 Parts Field Recycled . | . . . . . . . . . . . . . . . . . . . . . . . . . . . . . . . . . . . . Retrieved Matter . | . . . . . . . . . . . . . . . . . . . . . . . . . . . . . . . . . . . . Parts Self-Destructed 108 | . . . . . . . . . . 8 11 . 16 . . . . . . 6 15 . 17 . 20 7 . 8 . . . . . . . Prevented 12 | . . . . . . . . . . . 7 . . . . . . . . 1 . . . . 3 1 . . . . . . . . . Kills | -11 -10 -10 -9 -9 -8 -8 -7 -7 -7 -7 -7 -7 -6 -6 -6 -6 -6 -6 -5 -5 -5 -5 -4 -4 -4 -4 -4 -3 -3 -3 -3 -2 -2 -1 -1 ------- Run | Yrd Mat Min Mat Min Mat Gar Fac Gar Fac Low Low Zio Pro Fac Ext Cet Arc Hub Fac Upp Upp War Pro Fac Upp Upp Zhi Pro Res Gar Res Res Tes Acc Com Combat Hostiles Destroyed 527 | . 13 1 16 14 23 32 2 36 2 5 15 . 10 21 12 3 2 1 22 3 6 17 3 3 12 1 . 4 51 34 55 7 16 53 32 Melee 6 | . . . . . . . . . . . . . . 5 . . . . . . . . . . . . . . . 1 . . . . . Guns 430 | . 13 1 5 12 20 29 2 32 2 3 2 . 6 12 12 3 2 1 20 3 6 16 3 3 12 1 . 3 42 30 46 7 16 45 20 Cannons 43 | . . . 6 2 1 . . 4 . 1 11 . 1 2 . . . . . . . . . . . . . . . . . . . 7 8 AOE 45 | . . . 5 . 2 3 . . . . 1 . 3 2 . . . . 2 . . 1 . . . . . . 9 3 9 . . 1 4 Classes Destroyed 26 | . 6 2 1 1 2 2 . 4 . 1 . . . . . . . . 1 1 . 3 . . . . . . . . . . 1 . 1 Worker 26 | . . 1 1 1 . . 1 . 2 . . . . 3 . . . . 7 . . . . . . . . . 2 . 4 . . 4 . Builder 13 | . 1 . 1 . . . . . . . . . . 1 . . . . 5 . . . . . . . . . . . 1 . 1 3 . Tunneler 3 | . . . . 1 . . . . 1 . . . . . . . . . . . . . . . . . . . 1 . . . . . . Hauler 7 | . 1 . 4 . 2 . . . . . . . . . . . . . . . . . . . . . . . . . . . . . . Recycler 18 | . . 1 . . 3 . . . . . . . . . 2 . . . 5 . . . . . . . . . . . 2 . . 4 1 Minesweeper 1 | . . . . . . . . . . 1 . . . . . . . . . . . . . . . . . . . . . . . . . Mechanic 5 | . . . . . 1 . . 2 . . . . . . . . . . . . . . . . . . . . . . 1 . 1 . . Operator 7 | . 1 . 1 . . . . . . . . . . . 1 . 4 . . . . . . . . . . . . . . . . . . Watcher 8 | . 1 . 1 . . . . . . . . . . . 1 . . 1 . . . . . . . . . . . . 2 . 1 1 . Swarmer 138 | . 2 . 8 13 5 6 . 14 . 3 1 . 4 10 . . . . 10 . 4 . . 2 6 . . 3 12 12 17 . . 4 2 Cutter 6 | . . . . . . . . . . . . . . . . . . . . . . . . . . . . . . . . . . . 6 Saboteur 3 | . . . . . . . . . . . . . . . . . . . . . . 2 . . . . . . . 1 . . . . . Grunt 170 | . 11 1 3 1 14 17 . 9 2 2 9 . 6 2 7 . . . 7 . . 8 2 . 4 1 . . 19 5 10 2 5 22 1 Brawler 11 | . . . . . . . . 1 . . . . . . . . . . . . . 2 . . 1 . . . 1 . 1 1 . 1 3 Duelist 7 | . . . . . 1 1 . . . . 3 . . . . . . . . . . . . . . . . . . . 1 . . 1 . Protector 3 | . . . . . . . . 1 . . . . . . . . . . . . . 2 . . . . . . . . . . . . . Sentry 54 | . . . 5 . 3 4 1 7 . . 2 . . 4 2 . 2 1 . 1 . . . 1 1 . . 1 1 4 8 1 . 4 1 Demolisher 6 | . . . . . . . . 1 . . . . . . 1 . . . . . . . . . . . . . 3 . . 1 . . . Specialist 5 | . . . . . . . . 2 . . . . . . . . . . . . . . . . . . . . . 1 . . . 2 . Hunter 40 | . . . . . . 3 1 1 . . . . . 2 . . . . 1 . 2 . . . . . . . 7 3 4 . 1 11 4 Programmer 55 | . . . . . . 1 . . . . . . . 3 . . . . 3 1 . . . . . . . . 5 6 14 . 7 6 9 Heavy 3 | . . . . . . . . . . . . . . . . . . . 1 . . . . . . . . . . . . . . 2 . Behemoth 5 | . . . . . . . . . . . . . . . . . . . . 1 . . 1 . . . . . . 2 . . . . 1 Cetus Guard 3 | . . . . . . . . . . . . . . . . 3 . . . . . . . . . . . . . . . . . . . Combat Programmer 1 | . . . . . . . . . . . . . . . . . . . . . . . . . . . . . . . . . . . 1 Striker 7 | . . . . . . . . . . . . . . . . . . . . . . 2 . . . . . . 2 . . 2 1 . . Executioner 4 | . . . . . . . . . . . . . . . . . . . . . . 1 . . . . . . 1 . . . . . 2 Alpha 7 3 | . . . . . . . . . . . . . . . . . . . . . . . . . . . . . . . . . 2 . 1 Decomposer 2 | . . . . . . . . . . 2 . . . . . . . . . . . . . . . . . . . . . . . . . Thug 3 | . . . . . . . . . . . . . . . 1 1 . . . . . . . . . . . . . . . . 1 . . Butcher 2 | . . . . . . . . . . . . . . . 1 . . . . . . . . . . . . . . . . . . . 1 Wizard 1 | . . . . . . . . . . . . . . . . . . . . . . . . . . . . . . . . 1 . . . Best Kill Streak 17 | . 4 1 8 7 9 6 1 4 5 3 9 . 4 8 4 2 2 2 17 1 6 8 2 3 5 1 . 3 10 8 11 2 4 16 12 Combat Bots Only 15 | . 3 1 7 7 8 6 1 3 2 3 9 . 4 3 2 2 2 1 6 1 6 8 2 3 5 1 . 3 10 8 9 2 3 15 12 Max Kills in Single Turn 15 | . 2 1 5 2 2 2 1 2 1 1 1 . 2 2 1 1 2 1 15 1 3 2 1 1 2 1 . 2 4 3 5 3 2 3 4 Gunslinging 3 | . 1 . . . . 1 . 1 . . . . . . . . . . 3 . 2 1 . . 1 . . 1 1 2 1 1 1 2 1 Exploded 4 | . . . 3 . 1 1 . . . . 1 . 2 2 . . . . 2 . . 1 . . . . . . 4 3 3 . . 1 1 Melee 1 | . . . . . . . . . . . . . . 1 . . . . . . . . . . . . . . . 1 . . . . . Uniques/NPCs Destroyed . | . . . . . . . . . . . . . . . . . . . . . . . . . . . . . . . . . . . . Combat | -11 -10 -10 -9 -9 -8 -8 -7 -7 -7 -7 -7 -7 -6 -6 -6 -6 -6 -6 -5 -5 -5 -5 -4 -4 -4 -4 -4 -3 -3 -3 -3 -2 -2 -1 -1 -------- Run | Yrd Mat Min Mat Min Mat Gar Fac Gar Fac Low Low Zio Pro Fac Ext Cet Arc Hub Fac Upp Upp War Pro Fac Upp Upp Zhi Pro Res Gar Res Res Tes Acc Com Hostile Shots Fired 4011 | . 60 3 119 57 98 96 18 307 1 30 129 . 24 446 171 5 2 15 54 24 67 134 26 14 48 2 . 28 298 278 321 58 177 414 487 Missed 1106 | . 17 2 34 15 28 27 6 112 . 11 26 . 12 147 54 2 . 6 8 4 7 50 3 1 12 2 . 6 86 54 92 12 29 78 163 Hits 2905 | . 43 1 85 42 70 69 12 195 1 19 103 . 12 299 117 3 2 9 46 20 60 84 23 13 36 . . 22 212 224 229 46 148 336 324 Melee 48 | . . . . . 1 . . 1 . . 3 . . . . . . . . . . 5 . . . . . . 3 1 10 1 2 7 14 Projectile 2857 | . 43 1 85 42 69 69 12 194 1 19 100 . 12 299 117 3 2 9 46 20 60 79 23 13 36 . . 22 209 223 219 45 146 329 310 AOE 81 | . . . . . . . . 5 . . . . . . 5 . . . . . . 7 . . . . . . 14 . . 2 . 33 15 Critical Strikes 132 | . 1 1 2 . 4 4 . 3 . . 5 . 1 . 3 2 1 . 2 1 2 3 4 . 1 . . . 11 11 13 1 12 12 32 Part Disruptions 4 | . . . . . . . . . . . . . . . . . . . . . . 1 . . . . . . . . 2 . . 1 . Damage Taken 58753 | . 513 32 1057 347 1059 1058 142 2090 15 212 1740 . 223 3236 1560 54 50 187 779 504 774 2138 677 351 588 . . 557 5836 5356 5215 1623 3070 8258 9452 Core 4112 | . 124 . 101 53 103 197 48 259 15 11 118 . 32 207 273 . . 22 24 90 . 152 17 13 31 . . 23 327 185 345 84 107 317 834 Absorbed by Shields 497 | . . . . . . 18 . . . . . . . . 251 52 . . 4 . . . . . . . . . 172 . . . . . . Reduced by Siege Mode 1895 | . . . . . . . . . . . 85 . 10 89 . . . . 16 41 49 . 65 . 11 . . 13 82 511 159 . 246 394 124 Redirected to Shielding 521 | . . . . . . . . 72 . . . . . . . . . . . . . . . 84 29 . . 157 127 26 26 . . . . Ignored by Resistances 614 | . . . . . . . . . . 67 . . . 300 247 . . . . . . . . . . . . . . . . . . . . Regen/Repaired (Parts) 1874 | . . . . . . . . . . . . . . . . . . . . . . 1276 . . . . . . 483 . . 115 . . . Core Remaining (%) 57 | 100 . 50 . 61 . 45 . . . . . . 31 . . . . 40 . . . . 71 . . . . 94 . . 34 . 86 . 25 Volleys Fired 1382 | . 48 10 37 20 55 90 17 124 8 9 38 . 30 59 51 7 8 4 28 13 8 29 16 12 16 1 5 11 99 77 123 27 56 118 128 Largest 6 | . 2 2 3 3 4 4 3 4 4 3 3 . 4 4 4 4 4 4 5 5 5 5 5 5 5 5 1 4 5 5 5 6 6 6 6 Hottest 351 | . 60 63 121 90 150 158 90 170 124 121 133 . 131 130 135 140 140 140 171 171 171 177 174 176 224 224 81 186 187 183 190 226 228 233 351 Shots Fired 4628 | . 96 20 108 60 187 243 31 419 29 24 88 . 77 153 153 28 32 15 99 57 32 137 54 27 72 5 5 44 397 308 508 138 264 433 285 Gun 4201 | . 96 14 68 40 177 203 19 392 23 20 29 . 51 137 153 28 32 15 99 57 32 135 54 27 72 5 5 44 389 306 502 138 264 383 192 Cannon 366 | . . 6 37 20 4 30 12 27 6 4 57 . 23 13 . . . . . . . . . . . . . . . . . . . 48 79 Launcher 61 | . . . 3 . 6 10 . . . . 2 . 3 3 . . . . . . . 2 . . . . . . 8 2 6 . . 2 14 Special . | . . . . . . . . . . . . . . . . . . . . . . . . . . . . . . . . . . . . Kinetic 4248 | . 72 20 96 60 170 178 31 399 29 24 86 . 74 148 153 28 32 15 99 57 32 135 54 27 63 4 . 33 389 299 499 138 250 428 126 Thermal 280 | . 24 . 9 . 11 55 . 20 . . . . . 2 . . . . . . . . . . 9 1 5 11 . . . . . . 133 Explosive 56 | . . . 3 . 6 10 . . . . . . 3 2 . . . . . . . . . . . . . . 8 2 6 . . 2 14 Electromagnetic 17 | . . . . . . . . . . . 2 . . 1 . . . . . . . 2 . . . . . . . . . . . . 12 Entropic 27 | . . . . . . . . . . . . . . . . . . . . . . . . . . . . . . 7 3 . 14 3 . Robot Hit Streak 46 | . 12 2 6 3 9 20 2 36 6 6 11 . 16 10 10 16 8 5 17 23 12 13 13 17 14 1 6 20 21 32 40 8 42 46 19 Robot Miss Streak 12 | . 5 3 5 7 6 6 4 7 5 10 12 . 2 8 5 1 4 2 3 1 2 4 2 3 4 1 . 5 5 6 6 7 5 3 6 Penetration Max 4 | . . . . . . . . 1 . . 1 . . 1 2 1 1 . 2 . . 1 . 1 1 . . . 1 1 1 2 1 4 2 Secondary Targets 106 | . 2 . . . 6 6 . 5 . 1 . . . . 2 2 1 . 7 . 4 5 1 . 5 . . 2 12 11 11 2 5 10 6 Max Gunslinging Chain 3 | . 1 . . . 1 1 . 1 . 1 . . . . 1 1 1 . 3 . 2 1 1 . 2 . . 1 2 2 1 1 1 3 2 Shots Hit Robots 2819 | . 59 8 55 18 92 116 9 251 14 21 57 . 46 109 94 25 14 8 53 38 23 98 33 11 45 1 5 30 215 206 308 73 177 309 198 Core Hits 1611 | . 28 5 38 16 53 57 6 139 15 22 42 . 21 77 68 13 11 4 54 8 9 58 11 7 19 1 2 8 133 85 162 33 78 183 145 Critical Kills 163 | . . . . . . . . 2 . . . . . 1 10 3 6 . 12 . 2 6 . . 3 1 . 1 21 12 20 3 13 37 10 Critical Parts Destroyed 202 | . . . 1 . . . . 3 . . . . . 2 16 3 1 . 10 3 . 7 1 2 3 . . 2 28 16 26 2 20 51 5 Critical Strikes 444 | . . . 2 . 1 3 . 6 . 1 5 . . 4 30 10 7 . 22 7 2 15 1 2 6 1 . 5 51 38 48 5 39 105 28 Burn 12 | . . . 1 . 1 3 . . . . . . . . . . . . . . . . . . . . . 1 . . . . . . 6 Destroy 412 | . . . 1 . . . . 5 . . . . . 3 30 10 7 . 22 7 2 15 1 2 6 1 . 4 51 37 48 5 39 98 18 Blast 19 | . . . . . . . . 1 . 1 5 . . 1 . . . . . . . . . . . . . . . . . . . 7 4 Detonate 1 | . . . . . . . . . . . . . . . . . . . . . . . . . . . . . . 1 . . . . . Melee Attacks 128 | . . . 1 . 1 11 . 26 1 2 . 1 5 32 5 . . 1 6 1 . . . . . . . 1 7 . 26 1 . . . Impact 41 | . . . 1 . 1 4 . 26 . . . . . . . . . . . . . . . . . . . 1 7 . 1 . . . . Slashing 38 | . . . . . . . . . . . . . . 12 . . . . . . . . . . . . . . . . 25 1 . . . Piercing 37 | . . . . . . . . . 1 2 . 1 5 20 . . . 1 6 1 . . . . . . . . . . . . . . . Sneak Attacks 14 | . . . . . . 7 . . . 2 . . . . 5 . . . . . . . . . . . . . . . . . . . . Combat Hostiles . | . . . . . . . . . . . . . . . . . . . . . . . . . . . . . . . . . . . . Follow-up Attacks 3 | . . . . . . . . . . . . . . 3 . . . . . . . . . . . . . . . . . . . . . Damage Inflicted 77567 | . 797 137 1721 446 2313 2454 137 5209 302 684 2085 . 945 2801 1387 292 276 127 2613 1309 506 3685 766 334 1256 27 148 721 8369 5515 8370 2210 3543 8093 7989 Guns 60936 | . 797 54 764 329 1754 1978 137 4941 270 285 495 . 657 1885 1387 292 276 127 1573 1309 506 3390 766 334 1256 27 148 721 6021 5053 7004 2210 3543 5915 4732 Cannons 5989 | . . 83 436 117 85 . . 268 32 275 1348 . 150 151 . . . . . . . . . . . . . . . . . . . 1197 1847 Explosions 10091 | . . . 521 . 474 476 . . . . 242 . 138 373 . . . . 1040 . . 295 . . . . . . 2348 462 1365 . . 947 1410 Melee 516 | . . . . . . . . . . 124 . . . 392 . . . . . . . . . . . . . . . . . . . . . Ramming 35 | . . . . . . . . . . . . . . . . . . . . . . . . . . . . . . . 1 . . 34 . Kinetic 60672 | . 619 137 1129 446 1668 1438 137 4795 302 560 1843 . 807 2036 1387 292 276 127 1573 1309 506 3390 766 334 1069 27 . 573 6021 4686 7004 2210 3188 7000 3017 Thermal 6618 | . 178 . 71 . 171 540 . 414 . . . . . . . . . . 1040 . . 164 . . 187 . 148 148 . 72 . . . . 3485 Explosive 8282 | . . . 521 . 474 476 . . . . . . 138 213 . . . . . . . . . . . . . . 2348 390 1365 . . 947 1410 Electromagnetic 610 | . . . . . . . . . . . 242 . . 160 . . . . . . . 131 . . . . . . . . . . . . 77 Impact . | . . . . . . . . . . . . . . . . . . . . . . . . . . . . . . . . . . . . Slashing 274 | . . . . . . . . . . . . . . 274 . . . . . . . . . . . . . . . . . . . . . Piercing 242 | . . . . . . . . . . 124 . . . 118 . . . . . . . . . . . . . . . . . . . . . Entropic 834 | . . . . . . . . . . . . . . . . . . . . . . . . . . . . . . 367 . . 355 112 . Highest Corruption 35 | . . . . . . . . . . 1 2 2 . 2 2 2 12 12 3 2 . 1 1 . . . . . 7 8 23 5 6 18 35 Average Corruption 9 | . . . . . . . . . . 1 1 2 . 1 2 2 4 2 2 1 . 1 1 . . . . . 5 6 13 3 5 7 26 Corruption Purged 25 | . . . . . . . . . . . . . . . . . 14 . 1 2 . . 1 . . . . . 7 . . . . . . Corruption Blocked 14 | . . . . . . . . . . . . . . . . . . . . . . . . . . . . . . . . 14 . . . Effects 555 | . . . . . . . . . . . 3 4 . 17 17 8 8 1 6 2 . 1 1 . . . . . 23 51 138 38 36 24 177 Message Errors 121 | . . . . . . . . . . . 2 . . 5 3 2 2 1 . . . . . . . . . . 4 14 30 9 9 2 38 Matter Fused 129 | . . . . . . . . . . . . 1 . 6 5 2 2 . . 1 . . . . . . . . 7 12 28 11 4 5 45 Heat Flow Errors 59 | . . . . . . . . . . . . . . . 2 1 . . 2 . . . . . . . . . 4 5 13 4 6 7 15 Energy Discharges 53 | . . . . . . . . . . . . 1 . 2 2 2 1 . 2 . . 1 . . . . . . . 3 8 5 5 2 19 Parts Rejected 4 | . . . . . . . . . . . . . . . 1 . . . . . . . . . . . . . . . 2 . 1 . . Parts Fused 4 | . . . . . . . . . . . . . . . . . . . . . . . . . . . . . . 2 1 1 . . . Data Loss (minor) 73 | . . . . . . . . . . . 1 1 . 2 1 1 2 . 1 1 . . 1 . . . . . 1 4 21 5 3 2 26 Data Loss (major) 20 | . . . . . . . . . . . . . . 1 1 . 1 . . . . . . . . . . . 1 . 4 3 2 1 6 Misfires 21 | . . . . . . . . . . . . . . 1 . . . . . . . . . . . . . . 4 5 7 . . . 4 Alerts 12 | . . . . . . . . . . . . 1 . . . . . . . . . . . . . . . . . 2 3 . 2 . 4 Misdirections 16 | . . . . . . . . . . . . . . . . . . . . . . . . . . . . . . . 7 . . 1 8 Weapon Failures 43 | . . . . . . . . . . . . . . . 2 . . . 1 . . . . . . . . . 2 4 14 . 4 4 12 Overload Shots . | . . . . . . . . . . . . . . . . . . . . . . . . . . . . . . . . . . . . Overflow Damage 643 | . . . 45 6 17 24 . 4 . 33 130 . . 61 . . . . 18 . . . . . . . . . 164 . 91 . . 41 9 Projectiles 196 | . . . 14 6 . . . 4 . 33 130 . . . . . . . . . . . . . . . . . . . . . . 9 . Explosions 402 | . . . 31 . 17 24 . . . . . . . 16 . . . . 18 . . . . . . . . . 164 . 91 . . 32 9 Melee 45 | . . . . . . . . . . . . . . 45 . . . . . . . . . . . . . . . . . . . . . Knockbacks 44 | . . 3 3 1 3 . . 1 . 2 15 . 4 . . . . . . . . . . . . . . . . . . . . 8 4 Impact 1 | . . . . . . . . . . . . . . . . . . . . . . . . . . . . . . . . . . 1 . Kinetic 40 | . . 3 2 1 2 . . 1 . 2 14 . 4 . . . . . . . . . . . . . . . . . . . . 7 4 Secondary 3 | . . . 1 . 1 . . . . . 1 . . . . . . . . . . . . . . . . . . . . . . . . Self-Inflicted Damage 404 | . . . 31 . 41 97 . . . . 39 . . 44 . . . . . . . . . . . . . . . . 57 . . 95 . Shots 14 | . . . 1 . 2 3 . . . . 2 . . 2 . . . . . . . . . . . . . . . . 2 . . 2 . Rammed 4 | . . . . . . . . . . . . . . . . . . . . . . . . . . . . . . . 1 . . 3 . Targets Rammed 4 | . . . . . . . . . . . . . . . . . . . . . . . . . . . . . . . 1 . . 3 . Kicked . | . . . . . . . . . . . . . . . . . . . . . . . . . . . . . . . . . . . . Crushed . | . . . . . . . . . . . . . . . . . . . . . . . . . . . . . . . . . . . . Highest Temperature 528 | . 123 191 249 383 437 366 7 168 12 . 296 . 112 170 325 235 142 114 432 384 84 112 418 39 343 124 6 58 254 419 410 207 520 528 441 Average Temperature 94 | . 45 74 80 128 114 128 5 31 5 . 136 . 45 48 89 114 59 43 149 176 52 36 187 21 101 77 3 27 48 124 105 44 165 89 91 Received Heat Transfer 9117 | . 267 27 312 12 558 378 45 411 9 9 933 . 81 369 360 . 27 . 147 54 . 468 406 18 57 . . 45 507 1243 635 66 531 1014 128 Effects 31 | . . . . 1 4 1 . . . . 1 . . . 1 1 . . 2 1 . . 3 . . . . . . 2 1 . 4 6 3 Shutdowns 7 | . . . . . . . . . . . . . . . . . . . 1 . . . 1 . . . . . . 1 . . 2 2 . Energy Bleed 6 | . . . . . . . . . . . . . . . 1 1 . . 1 . . . . . . . . . . . 1 . . 2 . Interference 6 | . . . . . 2 . . . . . 1 . . . . . . . . . . . . . . . . . . . . . . . 3 Matter Decay 3 | . . . . 1 . . . . . . . . . . . . . . . . . . . . . . . . . 1 . . 1 . . Short Circuit 4 | . . . . . 1 . . . . . . . . . . . . . . . . . 1 . . . . . . . . . 1 1 . Damage (minor) 5 | . . . . . 1 1 . . . . . . . . . . . . . 1 . . 1 . . . . . . . . . . 1 . Siege Activations 60 | . . . . . . . . . . . 2 . 1 5 . 1 . . 2 1 1 1 2 . 1 . . 2 7 5 14 . 4 7 4 Total Turns 1192 | . . . . . . . . . . . 60 . 27 78 . 5 . . 23 36 17 9 46 . 9 . . 55 76 127 291 . 101 170 62 Longest Duration 71 | . . . . . . . . . . . 35 . 27 22 . 5 . . 14 36 17 9 27 . 9 . . 32 20 55 71 . 46 35 35 Martial Activations . | . . . . . . . . . . . . . . . . . . . . . . . . . . . . . . . . . . . . Shielding Activations . | . . . . . . . . . . . . . . . . . . . . . . . . . . . . . . . . . . . . Robots Disrupted 1 | . . . . . . . . . . . . . . . . . . . . . . . . . . . . . . . . . . . 1 Combat Hostiles 1 | . . . . . . . . . . . . . . . . . . . . . . . . . . . . . . . . . . . 1 Robots Corrupted 1 | . . . . . . . . . . . 1 . . . . . . . . . . . . . . . . . . . . . . . . Combat Hostiles 1 | . . . . . . . . . . . 1 . . . . . . . . . . . . . . . . . . . . . . . . Parts Fried 5 | . . . . . . . . . . . 1 . . . 1 . . . . . . . . . . . . . . . . 1 . 2 . Impact Corruptions 1 | . . . . . . . . . . . 1 . . . . . . . . . . . . . . . . . . . . . . . . Robots Melted 1 | . . . . . . . . . . . . . . . . . . . . . . . . . . . . 1 . . . . . . . Combat Hostiles 1 | . . . . . . . . . . . . . . . . . . . . . . . . . . . . 1 . . . . . . . Parts Melted 11 | . 1 . . . . 1 . . . . . . . . . . . . 1 . . 2 . . 1 . . . 1 . . . . . 4 Heat Transferred 8112 | . 400 . 222 . 370 1147 . 816 . . . . . . . . . . 800 . . 200 . . 296 . 185 296 . 25 . . . . 3355 Parts Sabotaged 4 | . . . . . . . . . . . . . . . . . . . . . . 1 . . . . . . . 1 1 . . 1 . Parts Stolen . | . . . . . . . . . . . . . . . . . . . . . . . . . . . . . . . . . . . . Parts Stripped . | . . . . . . . . . . . . . . . . . . . . . . . . . . . . . . . . . . . . Power Chain Reactions 2 | . . . . . . . . . . . . . . 1 . . . . . . . 1 . . . . . . . . . . . . . Alert | -11 -10 -10 -9 -9 -8 -8 -7 -7 -7 -7 -7 -7 -6 -6 -6 -6 -6 -6 -5 -5 -5 -5 -4 -4 -4 -4 -4 -3 -3 -3 -3 -2 -2 -1 -1 ------- Run | Yrd Mat Min Mat Min Mat Gar Fac Gar Fac Low Low Zio Pro Fac Ext Cet Arc Hub Fac Upp Upp War Pro Fac Upp Upp Zhi Pro Res Gar Res Res Tes Acc Com Maximum Alert Level 5 | . . . 1 1 2 5 3 5 4 . . . . 2 3 2 1 3 3 . . . . . . . . . 3 5 5 3 2 4 3 Low Security (%) 21 | 100 100 100 75 95 18 . . . . . . . . 31 3 . 5 25 1 . . . . 100 . . . . 60 . . . . 9 12 Level 1 22 | . . . 24 4 77 7 . . . . . . . 59 23 . 94 27 43 . . . . . . . . . 21 . . . 41 12 59 Level 2 20 | . . . . . 3 24 . 16 . . . . . 9 38 100 . 26 22 . . . . . . . . . 17 7 32 45 58 19 20 Level 3 20 | . . . . . . 28 100 20 . . . . . . 35 . . 20 32 . . . . . . . . . . 37 51 54 . 35 7 Level 4 9 | . . . . . . 38 . 22 100 . . . . . . . . . . . . . . . . . . . . 27 12 . . 23 . Level 5 6 | . . . . . . 1 . 40 . . . . . . . . . . . . . . . . . . . . . 28 3 . . . . High Security . | . . . . . . . . . . . . . . . . . . . . . . . . . . . . . . . . . . . . Max Security . | . . . . . . . . . . . . . . . . . . . . . . . . . . . . . . . . . . . . Peak Influence 2476 | . 75 65 282 213 411 1682 896 2476 1447 . . . . 478 1073 565 395 863 894 . . . . 95 . . . . 734 1705 1845 1033 590 1491 940 Initial 1299 | . . 24 21 22 42 206 882 519 1299 . . . . 478 200 440 204 64 413 . . . . . . . . . . 534 958 1033 353 165 940 Average 617 | . 39 6 141 149 283 969 806 1423 1377 . . . . 268 611 506 295 399 490 . . . . 14 . . . . 232 1197 909 744 419 809 338 Influence Increases 23053 | . 427 85 711 427 707 1596 122 2137 233 115 350 . 220 1330 1695 335 263 970 1065 80 140 310 95 146 260 20 5 90 1465 1421 1943 238 709 2033 1310 Destroy 0b10 Robot/C 11860 | . 260 40 380 300 460 760 40 700 60 100 300 . 200 460 800 160 80 260 440 60 120 300 60 60 240 20 . 80 1020 800 1100 140 320 1100 640 Destroy 0b10 Robot/NC 550 | . 20 10 45 10 35 . 10 45 15 5 . . . 20 35 10 20 10 85 . . 10 . . . . 5 . 15 . 50 . 15 70 10 Destroy Leader 1768 | . 64 10 112 40 96 40 22 30 10 10 20 . 20 130 64 . . 52 80 20 20 . 20 10 20 . . 10 170 80 224 50 52 232 60 Allied During Kill 1482 | . . 8 49 17 15 62 2 1 6 . . . . 32 659 140 100 309 22 . . . . . . . . . . 32 . . . 28 . Trap Triggered on 0b10 10 | . . . . . . . . . . . . . . 10 . . . . . . . . . . . . . . . . . . . . . Successful Hack 320 | . 8 . 16 . . 24 14 . . . . . . 17 24 9 . . 80 . . . . 15 . . . . 10 30 19 . 16 . 38 Select Force Hacks 190 | . 60 . . . . . 30 . . . . . . . . . . 100 . . . . . . . . . . . . . . . . . Disable Machine 1215 | . . 15 45 45 30 15 . 15 105 . . . . 135 30 . 60 75 240 . . . . 30 . . . . 60 30 120 15 60 90 . Anti-Garrison Action 2150 | . . . . . . 550 . 1200 . . . . . . . . . 150 . . . . . . . . . . . 250 . . . . . Destroy Structure 1828 | . . 2 49 15 56 130 4 71 37 . . . . 46 23 1 3 14 118 . . . . 16 . . . . 160 154 370 33 81 198 247 Advance Influence 450 | . . . . . . . . . . . . . . 450 . . . . . . . . . . . . . . . . . . . . . Partial Spotted 15 | . . . . . . . . . . . . . . . . . . . . . . . . . . . . . . . . . . . 15 Lose Combat Pursuer 1215 | . 15 . 15 . 15 15 . 75 . . 30 . . 30 60 15 . . . . . . 15 15 . . . . 30 45 60 . 165 315 300 Influence Decreases 22408 | . 364 93 707 377 499 231 1062 403 1357 837 524 456 174 965 1319 611 589 311 1047 700 278 222 287 71 335 20 5 90 753 428 1810 1447 1062 839 2135 Entered New Map 8339 | . . 39 34 37 67 111 800 223 1177 501 120 456 . 18 211 347 307 121 431 320 47 104 192 . 29 . . . . 178 747 805 276 111 530 Time Decay 9530 | . 354 54 573 310 302 . 222 . 140 326 334 . 164 622 428 214 262 130 386 380 231 74 95 51 296 20 5 90 603 . 693 612 416 428 715 Lost Part 2104 | . 10 . 60 10 90 80 20 180 . 10 70 . 10 180 50 10 . . 20 . . 44 . 20 10 . . . 150 230 70 30 70 300 380 Lost Ally 650 | . . . 40 20 40 40 20 . 40 . . . . 10 180 40 20 60 60 . . . . . . . . . . 20 . . . . 60 Purge Threat 1785 | . . . . . . . . . . . . . . 135 450 . . . 150 . . . . . . . . . . . 300 . 300 . 450 Squads Dispatched 103 | . 5 . 1 . 2 . 2 . 1 . 1 . . 6 5 . . 5 4 . . . . . . . . . 9 . 24 1 7 18 12 Investigation 19 | . 4 . 1 . 1 . 1 . . . . . . 1 1 . . 2 . . . . . . . . . . 4 . 2 . 1 . 1 Extermination 28 | . . . . . . . . . . . . . . 4 . . . . 1 . . . . . . . . . . . 7 . 2 3 11 Reinforcement 25 | . 1 . . . 1 . . . 1 . . . . 1 2 . . 1 2 . . . . . . . . . 5 . 4 1 2 4 . Assault 14 | . . . . . . . 1 . . . 1 . . . 2 . . 2 1 . . . . . . . . . . . 2 . 1 4 . Garrison 17 | . . . . . . . . . . . . . . . . . . . . . . . . . . . . . . . 9 . 1 7 . Intercept . | . . . . . . . . . . . . . . . . . . . . . . . . . . . . . . . . . . . . Searches Triggered . | . . . . . . . . . . . . . . . . . . . . . . . . . . . . . . . . . . . . Construction Impeded 2 | . . . . . 1 . . . . . . . . . . . . . . . . . . . . . . . . . . . . 1 . Haulers Reinforced 3 | . . . . . . . . . . . . . . 1 . . . . . . . . . . . . . . 1 . 1 . . . . Active Scanning Responses . | . . . . . . . . . . . . . . . . . . . . . . . . . . . . . . . . . . . . Cargo Convoy Interrupts . | . . . . . . . . . . . . . . . . . . . . . . . . . . . . . . . . . . . . Stealth | -11 -10 -10 -9 -9 -8 -8 -7 -7 -7 -7 -7 -7 -6 -6 -6 -6 -6 -6 -5 -5 -5 -5 -4 -4 -4 -4 -4 -3 -3 -3 -3 -2 -2 -1 -1 --------- Run | Yrd Mat Min Mat Min Mat Gar Fac Gar Fac Low Low Zio Pro Fac Ext Cet Arc Hub Fac Upp Upp War Pro Fac Upp Upp Zhi Pro Res Gar Res Res Tes Acc Com Distress Signals 51 | . 2 . 3 . 3 . . 1 . . . . 1 . 5 2 . . 1 . . . . . . . . . 4 . 8 5 4 8 4 Communications Jammed . | . . . . . . . . . . . . . . . . . . . . . . . . . . . . . . . . . . . . Distress Signals . | . . . . . . . . . . . . . . . . . . . . . . . . . . . . . . . . . . . . Times Spotted 916 | . 21 1 39 14 33 36 3 48 4 8 19 . 13 30 44 11 8 16 26 3 7 60 4 8 12 1 . 4 77 44 80 30 38 87 87 Peak Tracking Total 45 | . 3 1 10 4 6 5 1 5 2 3 10 . 4 5 7 5 1 6 6 1 6 13 3 3 5 1 . 3 7 5 10 6 8 13 45 Tactical Retreats 39 | . 1 . 1 . 1 1 . 3 . . 2 . . 1 3 1 . . . . . . 1 1 . . . . 2 2 3 . 5 8 3 Traps | -11 -10 -10 -9 -9 -8 -8 -7 -7 -7 -7 -7 -7 -6 -6 -6 -6 -6 -6 -5 -5 -5 -5 -4 -4 -4 -4 -4 -3 -3 -3 -3 -2 -2 -1 -1 ------- Run | Yrd Mat Min Mat Min Mat Gar Fac Gar Fac Low Low Zio Pro Fac Ext Cet Arc Hub Fac Upp Upp War Pro Fac Upp Upp Zhi Pro Res Gar Res Res Tes Acc Com Traps Triggered 28 | . 2 . 2 . 1 2 2 7 . . . . . 1 . . . 1 . . . 1 . . . . . . 2 5 2 . . . . Indirectly 1 | . . . . . . . . . . . . . . . . . . . . . . 1 . . . . . . . . . . . . . Trap Hack Attempts . | . . . . . . . . . . . . . . . . . . . . . . . . . . . . . . . . . . . . Triggered . | . . . . . . . . . . . . . . . . . . . . . . . . . . . . . . . . . . . . Disarmed . | . . . . . . . . . . . . . . . . . . . . . . . . . . . . . . . . . . . . Reprogrammed . | . . . . . . . . . . . . . . . . . . . . . . . . . . . . . . . . . . . . Reused . | . . . . . . . . . . . . . . . . . . . . . . . . . . . . . . . . . . . . Traps Extracted . | . . . . . . . . . . . . . . . . . . . . . . . . . . . . . . . . . . . . Installed . | . . . . . . . . . . . . . . . . . . . . . . . . . . . . . . . . . . . . Triggered 1 | . . . . . . . . . . . . . . 1 . . . . . . . . . . . . . . . . . . . . . Most Traps Carried 1 | . . . . . . . . . . 1 1 1 . . . . . . . . . . . . . . . . . . . . . . . Machines | -11 -10 -10 -9 -9 -8 -8 -7 -7 -7 -7 -7 -7 -6 -6 -6 -6 -6 -6 -5 -5 -5 -5 -4 -4 -4 -4 -4 -3 -3 -3 -3 -2 -2 -1 -1 ---------- Run | Yrd Mat Min Mat Min Mat Gar Fac Gar Fac Low Low Zio Pro Fac Ext Cet Arc Hub Fac Upp Upp War Pro Fac Upp Upp Zhi Pro Res Gar Res Res Tes Acc Com Machines Disabled 107 | . . 1 3 3 2 10 . 9 7 . . . . 9 3 . 4 6 16 . . 2 . 2 . . . 1 4 6 8 1 4 6 . Max in Single Turn 14 | . . 1 1 1 1 2 . 2 6 . . . . 4 . . 2 3 14 . . 1 . 1 . . . 1 1 1 2 1 1 1 . Garrison Access 4 | . . . . . . . . . . . . . . . . . . 2 . . . . . . . . . . . . . 2 . . . Garrison Relay 13 | . . . . . . 5 . 5 . . . . . . . . . . . . . . . . . . . . . 3 . . . . . Phase Generator 2 | . . . . . . 1 . 1 . . . . . . . . . . . . . . . . . . . . . . . . . . . Network Hub 2 | . . . . . . . . . . . . . . . . . . 2 . . . . . . . . . . . . . . . . . Energy Cycler 1 | . . . . . . . . . . . . . . . . . . . . . . . . . . . . . . . . . . 1 . Machines Repaired . | . . . . . . . . . . . . . . . . . . . . . . . . . . . . . . . . . . . . Machines Dismantled . | . . . . . . . . . . . . . . . . . . . . . . . . . . . . . . . . . . . . Machines Sabotaged 2 | . . . . . . . . . . . . . . . . . . 2 . . . . . . . . . . . . . . . . . Overloaded Fab Kills . | . . . . . . . . . . . . . . . . . . . . . . . . . . . . . . . . . . . . Hacking | -11 -10 -10 -9 -9 -8 -8 -7 -7 -7 -7 -7 -7 -6 -6 -6 -6 -6 -6 -5 -5 -5 -5 -4 -4 -4 -4 -4 -3 -3 -3 -3 -2 -2 -1 -1 --------- Run | Yrd Mat Min Mat Min Mat Gar Fac Gar Fac Low Low Zio Pro Fac Ext Cet Arc Hub Fac Upp Upp War Pro Fac Upp Upp Zhi Pro Res Gar Res Res Tes Acc Com Machines Accessed 95 | . 8 1 6 . 2 4 3 1 . . . . . 10 8 1 . 3 5 1 . 9 . 1 . . 4 1 7 2 8 . 5 1 4 Terminals 57 | . 6 . 6 . 1 4 1 1 . . . . . 6 8 1 . 2 4 . . . . . . . . . 2 2 4 . 5 . 4 Fabricators 4 | . . . . . . . . . . . . . . 2 . . . . 1 . . . . 1 . . . . . . . . . . . Repair Stations 2 | . . . . . . . . . . . . . . . . . . . . . . . . . . . . . 1 . 1 . . . . Recycling Units 5 | . 2 . . . . . 1 . . . . . . 1 . . . . . . . . . . . . . . . . 1 . . . . Scanalyzers . | . . . . . . . . . . . . . . . . . . . . . . . . . . . . . . . . . . . . Garrison Access 11 | . . . . . 1 . 1 . . . . . . 1 . . . 1 . . . . . . . . . . 4 . 2 . . 1 . Total Hacks 287 | . 19 1 12 . 10 5 5 2 . . . . . 29 21 1 . 8 39 1 . 13 . 8 . . 17 1 18 3 25 . 36 1 12 Successful 129 | . 10 1 8 . 5 3 3 . . . . . . 14 9 1 . 3 15 1 . 13 . 4 . . 17 1 2 2 7 . 8 . 2 Failed 158 | . 9 . 4 . 5 2 2 2 . . . . . 15 12 . . 5 24 . . . . 4 . . . . 16 1 18 . 28 1 10 Catastrophic 46 | . . . 1 . 1 . . 1 . . . . . 7 4 . . 1 7 . . . . 1 . . . . 4 . 8 . 5 1 5 Database Lockouts . | . . . . . . . . . . . . . . . . . . . . . . . . . . . . . . . . . . . . Manual 151 | . 19 . 14 . 8 . 3 . . . . 1 . 18 9 1 . 4 24 . . . . 7 . . . . 2 . 13 . 20 . 8 Terminals 201 | . 17 . 12 . 9 5 2 2 . . . . . 17 21 1 . 4 36 . . . . 7 . . . . 3 3 14 . 36 . 12 Fabricators 14 | . . . . . . . . . . . . . . 10 . . . . 3 . . . . 1 . . . . . . . . . . . Repair Stations 4 | . . . . . . . . . . . . . . . . . . . . . . . . . . . . . 2 . 2 . . . . Recycling Units 5 | . 2 . . . . . 1 . . . . . . 1 . . . . . . . . . . . . . . . . 1 . . . . Scanalyzers . | . . . . . . . . . . . . . . . . . . . . . . . . . . . . . . . . . . . . Garrison Access 30 | . . . . . 1 . 2 . . . . . . 1 . . . 4 . . . . . . . . . . 13 . 8 . . 1 . Terminal Hacks 79 | . 2 1 2 . 2 3 . . . . . . . 4 8 1 . . 9 1 . 13 . 2 . . 17 1 . 2 3 . 7 . 1 Record 20 | . . . . . . . . . . . . . . . . . . . . . . 12 . . . . 5 1 . . . . 1 . 1 Part Schematic 4 | . . . . . . . . . . . . . . . . . . . . . . . . . . . 4 . . . . . . . . Robot Analysis 6 | . 1 . 1 . . . . . . . . . . . . . . . . . . . . . . . 4 . . . . . . . . Prototype ID Bank 5 | . . . . . . . . . . . . . . . . . . . 1 . . . . . . . 4 . . . . . . . . Open Door 10 | . . 1 . . . 1 . . . . . . . . 5 1 . . . 1 . 1 . . . . . . . . . . . . . Level Access Points 1 | . . . . . . . . . . . . . . . . . . . . . . . . . . . . . . . . . 1 . . Branch Access Points 3 | . . . . . . . . . . . . . . 1 . . . . 1 . . . . 1 . . . . . . . . . . . Emergency Access Points 2 | . . . . . . . . . . . . . . . . . . . 1 . . . . . . . . . . 1 . . . . . Terminal Index 6 | . 1 . 1 . 1 . . . . . . . . 1 . . . . 1 . . . . . . . . . . . 1 . . . . Repair Station Index 1 | . . . . . . . . . . . . . . . . . . . . . . . . 1 . . . . . . . . . . . Alert Level 7 | . . . . . 1 . . . . . . . . 1 1 . . . 2 . . . . . . . . . . . 1 . 1 . . Unreport Threat 7 | . . . . . . . . . . . . . . 1 2 . . . 1 . . . . . . . . . . . 1 . 2 . . Security Status 1 | . . . . . . . . . . . . . . . . . . . . . . . . . . . . . . . . . 1 . . Registered Components 1 | . . . . . . . . . . . . . . . . . . . 1 . . . . . . . . . . . . . . . . Zone Layout 2 | . . . . . . . . . . . . . . . . . . . 1 . . . . . . . . . . . . . 1 . . Garrison Registry 1 | . . . . . . 1 . . . . . . . . . . . . . . . . . . . . . . . . . . . . . Patrol Navigation 1 | . . . . . . 1 . . . . . . . . . . . . . . . . . . . . . . . . . . . . . Security Stations 1 | . . . . . . . . . . . . . . . . . . . . . . . . . . . . . . 1 . . . . . Fabricator Hacks 8 | . . . . . . . . . . . . . . 6 . . . . 1 . . . . 1 . . . . . . . . . . . Network Status 2 | . . . . . . . . . . . . . . . . . . . 1 . . . . 1 . . . . . . . . . . . Load Schematic 3 | . . . . . . . . . . . . . . 3 . . . . . . . . . . . . . . . . . . . . . Build 3 | . . . . . . . . . . . . . . 3 . . . . . . . . . . . . . . . . . . . . . Repair Station Hacks 2 | . . . . . . . . . . . . . . . . . . . . . . . . . . . . . . . 2 . . . . Scan Component 1 | . . . . . . . . . . . . . . . . . . . . . . . . . . . . . . . 1 . . . . Repair 1 | . . . . . . . . . . . . . . . . . . . . . . . . . . . . . . . 1 . . . . Recycling Unit Hacks . | . . . . . . . . . . . . . . . . . . . . . . . . . . . . . . . . . . . . Scanalyzer . | . . . . . . . . . . . . . . . . . . . . . . . . . . . . . . . . . . . . Garrison Access Hacks 4 | . . . . . 1 . 1 . . . . . . . . . . 1 . . . . . . . . . . 1 . . . . . . Unlock Access 3 | . . . . . 1 . 1 . . . . . . . . . . . . . . . . . . . . . 1 . . . . . . Seal Access 1 | . . . . . . . . . . . . . . . . . . 1 . . . . . . . . . . . . . . . . . Unauthorized Hacks 36 | . 8 . 6 . 2 . 2 . . . . . . 4 1 . . 2 5 . . . . 1 . . . . 1 . 2 . 1 . 1 Terminals 30 | . 6 . 6 . 2 . 1 . . . . . . 3 1 . . 2 4 . . . . 1 . . . . . . 2 . 1 . 1 Assimilate 2 | . . . . . . . . . . . . . . 1 . . . . 1 . . . . . . . . . . . . . . . . Botnet 14 | . 1 . 1 . 1 . 1 . . . . . . 2 1 . . . 2 . . . . 1 . . . . . . 2 . 1 . 1 Operators 1 | . . . . . . . . . . . . . . . . . . . 1 . . . . . . . . . . . . . . . . Skim 11 | . 5 . 5 . 1 . . . . . . . . . . . . . . . . . . . . . . . . . . . . . . Sabotage 2 | . . . . . . . . . . . . . . . . . . 2 . . . . . . . . . . . . . . . . . Fabricators 2 | . . . . . . . . . . . . . . 1 . . . . 1 . . . . . . . . . . . . . . . . Prioritize 1 | . . . . . . . . . . . . . . 1 . . . . . . . . . . . . . . . . . . . . . Haulers 1 | . . . . . . . . . . . . . . . . . . . 1 . . . . . . . . . . . . . . . . Repair Stations 1 | . . . . . . . . . . . . . . . . . . . . . . . . . . . . . 1 . . . . . . Patch 1 | . . . . . . . . . . . . . . . . . . . . . . . . . . . . . 1 . . . . . . Recycling Units 3 | . 2 . . . . . 1 . . . . . . . . . . . . . . . . . . . . . . . . . . . . Tunnel 3 | . 2 . . . . . 1 . . . . . . . . . . . . . . . . . . . . . . . . . . . . Scanalyzers . | . . . . . . . . . . . . . . . . . . . . . . . . . . . . . . . . . . . . Garrison Access . | . . . . . . . . . . . . . . . . . . . . . . . . . . . . . . . . . . . . Data Cores Recovered 1 | . . . 1 . . . . . . . . . . . . . . . . . . . . . . . . . . . . . . . . Used . | . . . . . . . . . . . . . . . . . . . . . . . . . . . . . . . . . . . . Hacking Detections 58 | . 5 . 5 . 1 3 2 1 . . . . . 8 3 1 . 2 4 . . . . 1 . . . . 5 . 7 . 5 1 4 Full Trace Events 4 | . . . . . . . . . . . . . . . 1 . . . . . . . . . . . . . 1 . 1 . 1 . . Feedback Events 1 | . . . . . . . . . . . . . . . . . . . . . . . . . . . . . . . 1 . . . . Corruption 1 | . . . . . . . . . . . . . . . . . . . . . . . . . . . . . . . 1 . . . . Feedback Blocked . | . . . . . . . . . . . . . . . . . . . . . . . . . . . . . . . . . . . . Robot Schematics Acquired 4 | . . . . . . . . . . . . 4 . . . . . . . . . . . . . . . . . . . . . . . Robots Built 4 | . . . . . . . . . . . . . . 4 . . . . . . . . . . . . . . . . . . . . . Authchips 3 | . . . . . . . . . . . . . . 3 . . . . . . . . . . . . . . . . . . . . . Time 255 | . . . . . . . . . . . . . . 255 . . . . . . . . . . . . . . . . . . . . . Total Robot Build Rating 32 | . . . . . . . . . . . . . . 32 . . . . . . . . . . . . . . . . . . . . . Part Schematics Acquired 18 | . . . . . . . . . . . . 14 . . . . . . . . . . . . . . 4 . . . . . . . . Parts Built . | . . . . . . . . . . . . . . . . . . . . . . . . . . . . . . . . . . . . Authchips . | . . . . . . . . . . . . . . . . . . . . . . . . . . . . . . . . . . . . Time . | . . . . . . . . . . . . . . . . . . . . . . . . . . . . . . . . . . . . Total Part Build Rating . | . . . . . . . . . . . . . . . . . . . . . . . . . . . . . . . . . . . . Parts Repaired . | . . . . . . . . . . . . . . . . . . . . . . . . . . . . . . . . . . . . Time 68 | . . . . . . . . . . . . . . . . . . . . . . . . . . . . . . . 68 . . . . Parts Recycled . | . . . . . . . . . . . . . . . . . . . . . . . . . . . . . . . . . . . . Recycled Matter . | . . . . . . . . . . . . . . . . . . . . . . . . . . . . . . . . . . . . Retrieved Matter . | . . . . . . . . . . . . . . . . . . . . . . . . . . . . . . . . . . . . Retrieved Components . | . . . . . . . . . . . . . . . . . . . . . . . . . . . . . . . . . . . . Parts Scanalyzed . | . . . . . . . . . . . . . . . . . . . . . . . . . . . . . . . . . . . . Part Schematics Acquired . | . . . . . . . . . . . . . . . . . . . . . . . . . . . . . . . . . . . . Parts Damaged . | . . . . . . . . . . . . . . . . . . . . . . . . . . . . . . . . . . . . Bothacking | -11 -10 -10 -9 -9 -8 -8 -7 -7 -7 -7 -7 -7 -6 -6 -6 -6 -6 -6 -5 -5 -5 -5 -4 -4 -4 -4 -4 -3 -3 -3 -3 -2 -2 -1 -1 ------------ Run | Yrd Mat Min Mat Min Mat Gar Fac Gar Fac Low Low Zio Pro Fac Ext Cet Arc Hub Fac Upp Upp War Pro Fac Upp Upp Zhi Pro Res Gar Res Res Tes Acc Com Used RIF Installer . | . . . . . . . . . . . . . . . . . . . . . . . . . . . . . . . . . . . . Robots Hacked . | . . . . . . . . . . . . . . . . . . . . . . . . . . . . . . . . . . . . Non-combat . | . . . . . . . . . . . . . . . . . . . . . . . . . . . . . . . . . . . . Combat . | . . . . . . . . . . . . . . . . . . . . . . . . . . . . . . . . . . . . Robot Hacks Applied . | . . . . . . . . . . . . . . . . . . . . . . . . . . . . . . . . . . . . Relay Couplers Released 55 | . . . . . . 19 . 19 . . . . . . . . . 1 . . . . . . . . . . . 14 . 2 . . . Machine Destruction 55 | . . . . . . 19 . 19 . . . . . . . . . 1 . . . . . . . . . . . 14 . 2 . . . Fabnet Peak Effective % . | . . . . . . . . . . . . . . . . . . . . . . . . . . . . . . . . . . . . Robots Rewired 15 | . . . . . . 3 . 2 . . . . . . 9 . . . . . . . . . . . . . . . . . 1 . . Allies Hacked 1 | . . . . . . 1 . . . . . . . . . . . . . . . . . . . . . . . . . . . . . Hacks Repelled . | . . . . . . . . . . . . . . . . . . . . . . . . . . . . . . . . . . . . Allies | -11 -10 -10 -9 -9 -8 -8 -7 -7 -7 -7 -7 -7 -6 -6 -6 -6 -6 -6 -5 -5 -5 -5 -4 -4 -4 -4 -4 -3 -3 -3 -3 -2 -2 -1 -1 -------- Run | Yrd Mat Min Mat Min Mat Gar Fac Gar Fac Low Low Zio Pro Fac Ext Cet Arc Hub Fac Upp Upp War Pro Fac Upp Upp Zhi Pro Res Gar Res Res Tes Acc Com Total Allies 42 | . . 3 . 2 . 4 . 2 . . . . . 5 15 5 . . . . . . . . . . . . . 2 . . 1 3 . Largest Group 13 | . . 3 3 2 2 3 1 2 2 . . . . 4 13 11 9 6 3 . . . . . . . . . . 2 . . 1 3 . Highest-Rated Group 725 | . . 40 40 50 50 45 31 37 37 . . . . 200 612 725 694 511 288 . . . . . . . . . . 142 . . 152 379 . Highest-Rated Ally 159 | . . 16 16 31 31 31 31 21 21 . . . . 50 159 143 143 96 96 . . . . . . . . . . 80 . . 152 135 . Initial Warlord ECA Mod 528 | . . . . . . . 10 10 20 20 20 20 19 19 19 19 19 19 18 18 18 18 17 17 17 17 17 16 16 16 23 22 22 21 21 Total Orders 31 | . . . . . . . . . . . . . . 3 1 . . . 3 . . . . 3 . . . . . . 1 2 . . 18 STAY 2 | . . . . . . . . . . . . . . . . . . . 2 . . . . . . . . . . . . . . . . FOLLOW 3 | . . . . . . . . . . . . . . . . . . . 1 . . . . . . . . . . . . . . . 2 EXPLORE 11 | . . . . . . . . . . . . . . . . . . . . . . . . . . . . . . . . 1 . . 10 RETURN 15 | . . . . . . . . . . . . . . 3 1 . . . . . . . . 3 . . . . . . 1 1 . . 6 Ally Attacks 395 | . . 2 32 2 7 27 11 2 11 . . . . 5 144 58 9 53 6 . . . . . . . . . . 16 . . 1 9 . Total Damage 11168 | . . 33 307 43 83 593 211 42 145 . . . . 132 4529 1496 318 1332 228 . . . . . . . . . . 1034 . . 91 551 . Kills 85 | . . 1 4 1 1 6 1 . 1 . . . . 2 34 7 3 13 . . . . . . . . . . . 7 . . . 4 . Allies Corrupted . | . . . . . . . . . . . . . . . . . . . . . . . . . . . . . . . . . . . . Allies Melted 5 | . . . . . . . . . . . . . . . . . . . . . . 1 . . . . . . . . . 4 . . . Intel | -11 -10 -10 -9 -9 -8 -8 -7 -7 -7 -7 -7 -7 -6 -6 -6 -6 -6 -6 -5 -5 -5 -5 -4 -4 -4 -4 -4 -3 -3 -3 -3 -2 -2 -1 -1 ------- Run | Yrd Mat Min Mat Min Mat Gar Fac Gar Fac Low Low Zio Pro Fac Ext Cet Arc Hub Fac Upp Upp War Pro Fac Upp Upp Zhi Pro Res Gar Res Res Tes Acc Com Active Infowar (turns) 31551 | . . 2 . . 96 1833 468 1199 295 597 425 1832 754 2187 645 40 . 190 683 806 1110 984 515 213 834 1026 330 592 2268 1670 2840 2006 1011 1052 3048 Optics 1080 | . . . . . . . . . . . . 4 . . . . . . . . . . . . 3 . . . . . 1073 . . . . Sensors 18190 | . . 2 . . . . . . 130 597 425 1828 754 1954 645 40 . 190 683 806 1110 984 460 213 834 1026 330 592 264 . 2033 163 638 547 942 Terrain 2048 | . . . . . . . . . . . . . . . . . . . . . . . . . . . . . . . 489 155 360 168 876 Seismic 4050 | . . . . . 96 1833 468 1080 . . . . . . . . . . . . . . 55 . . . . . . . . . . 19 499 Decoding 14755 | . . . . . . . . . . . . . . 879 . . . . . . . . . . . . . . 2249 1670 2840 2006 1011 1052 3048 T.N.C. 147 | . . . . . . . . . 147 . . . . . . . . . . . . . . . . . . . . . . . . . . Machine Analysis 413 | . . . . . . . . 119 294 . . . . . . . . . . . . . . . . . . . . . . . . . . Jamming 2 | . . . . . . . . . . . . . . . . . . . . . . . . . . . . . . . 2 . . . . Robot Analysis Total 6 | . 1 . 1 . . . . . . . . . . . . . . . . . . . . . . . 4 . . . . . . . . Derelict Logs Recovered 9 | . . . . 1 . . . . . 1 1 2 . . . . . . . 1 . . 1 . 1 1 . . . . . . . . . Drone Launches 22 | . . . . . . . . . . . . . . 3 1 . . . . . . . . 3 . . . . . . 1 1 . . 13 Drone Recoveries 16 | . . . . . . . . . . . . . . 3 1 . . . . . . . . 3 . . . . . . 1 1 . . 7 Decoded 0b10 Intel 761 | . . . . . . . . . . . . . . 16 . . . . . . . . . . . . . . 152 59 186 141 72 75 60 Traps 10 | . . . . . . . . . . . . . . 10 . . . . . . . . . . . . . . . . . . . . . Emergency Access 6 | . . . . . . . . . . . . . . 6 . . . . . . . . . . . . . . . . . . . . . Items 745 | . . . . . . . . . . . . . . . . . . . . . . . . . . . . . 152 59 186 141 72 75 60 Exploration | -11 -10 -10 -9 -9 -8 -8 -7 -7 -7 -7 -7 -7 -6 -6 -6 -6 -6 -6 -5 -5 -5 -5 -4 -4 -4 -4 -4 -3 -3 -3 -3 -2 -2 -1 -1 ------------- Run | Yrd Mat Min Mat Min Mat Gar Fac Gar Fac Low Low Zio Pro Fac Ext Cet Arc Hub Fac Upp Upp War Pro Fac Upp Upp Zhi Pro Res Gar Res Res Tes Acc Com Turns Passed 41619 | 92 877 387 1871 688 672 1833 473 3016 295 729 746 2310 855 2306 1050 443 572 268 915 880 1135 1291 569 315 863 1026 330 673 2268 1670 2840 2006 1011 1052 3292 Spaces Moved 21095 | 51 448 274 789 428 316 1025 287 1477 180 495 348 1199 360 1035 460 183 216 146 417 449 646 718 276 165 481 634 187 358 1144 739 1153 1225 399 387 2000 Core 851 | 1 . . . . . . . 4 . . . . . . . . . . . . . . . . . . . . . . . . . . 846 Treads 14086 | 50 448 91 . . . . . 949 . . . . 28 983 460 183 216 146 417 449 646 718 276 165 481 634 187 358 1144 739 1153 1225 399 387 1154 Legs . | . . . . . . . . . . . . . . . . . . . . . . . . . . . . . . . . . . . . Wheels 6158 | . . 183 789 428 316 1025 287 524 180 495 348 1199 332 52 . . . . . . . . . . . . . . . . . . . . . Hover . | . . . . . . . . . . . . . . . . . . . . . . . . . . . . . . . . . . . . Flight . | . . . . . . . . . . . . . . . . . . . . . . . . . . . . . . . . . . . . Fastest Speed 50 | 50 160 105 105 145 130 135 116 116 116 116 131 190 190 160 156 155 160 160 160 160 160 160 160 160 160 160 160 162 148 160 155 145 145 145 50 Average Speed 156 | 157 160 123 174 145 143 149 142 164 130 126 171 190 195 164 156 164 160 160 160 160 160 160 160 160 160 160 161 162 154 177 159 148 149 150 120 Slowest Speed 1050 | 160 160 160 230 145 145 230 150 1050 150 131 220 220 240 245 160 235 240 160 160 160 160 160 160 160 160 160 162 162 170 270 165 225 150 237 176 Overloaded Moves . | . . . . . . . . . . . . . . . . . . . . . . . . . . . . . . . . . . . . Propulsion Burnouts . | . . . . . . . . . . . . . . . . . . . . . . . . . . . . . . . . . . . . Robots Hopped 1 | . . . . . . . . . . . . . . . . . . . . . . . . . . . . . . 1 . . . . . Potential Cave-ins . | . . . . . . . . . . . . . . . . . . . . . . . . . . . . . . . . . . . . Cave-ins Triggered . | . . . . . . . . . . . . . . . . . . . . . . . . . . . . . . . . . . . . Exploration Rate (%) 53 | 4 76 59 75 90 37 97 9 95 5 61 54 83 51 30 70 76 81 23 17 54 73 84 47 6 57 72 60 59 47 78 40 54 40 14 55 Regions Visited 35 Branch Regions 20 Pre-discovered Areas 14 | . 2 . 1 . . . 1 . . 2 . 3 . . . . . . . . . 2 . . . . 3 . . . . . . . . Known Exits Taken 28 | . . . . 1 1 . 1 . 1 1 1 1 1 1 1 1 1 1 1 1 1 1 1 1 1 1 1 1 1 . 1 1 1 1 . Unknown Exits Taken 4 | 1 1 1 1 . . . . . . . . . . . . . . . . . . . . . . . . . . . . . . . . Scrap Searched 23 | . . 1 . 2 . . . . . 3 2 2 2 . . . . . . . 1 . 2 . 2 3 . 3 . . . . . . . Spaces Dug 217 | . . . 2 . 1 6 6 22 . . 8 . 14 15 8 . . 1 16 4 3 . 9 4 . . . . 8 . 50 1 7 15 17 Terrain Destroyed 1445 | . . 2 50 16 67 184 6 96 43 . 23 . 44 45 8 . 6 4 56 23 16 14 25 8 29 4 . 13 109 49 246 26 36 93 104 Melee 85 | . . . 1 . 1 3 . 22 . . . . 4 13 . . . 1 6 1 . . . . . . . . 7 . 25 1 . . . Projectile 463 | . . 2 19 16 1 10 6 7 4 . 23 . 8 11 8 . 6 3 28 22 16 13 25 7 29 4 . 13 24 15 16 25 32 38 32 AOE 862 | . . . 30 . 65 171 . 67 39 . . . 32 20 . . . . 22 . . . . . . . . . 77 31 193 . . 43 72 Terrain Rammed . | . . . . . . . . . . . . . . . . . . . . . . . . . . . . . . . . . . . . Walls Destroyed . | . . . . . . . . . . . . . . . . . . . . . . . . . . . . . . . . . . . . Machines Disabled . | . . . . . . . . . . . . . . . . . . . . . . . . . . . . . . . . . . . . Actions | -11 -10 -10 -9 -9 -8 -8 -7 -7 -7 -7 -7 -7 -6 -6 -6 -6 -6 -6 -5 -5 -5 -5 -4 -4 -4 -4 -4 -3 -3 -3 -3 -2 -2 -1 -1 --------- Run | Yrd Mat Min Mat Min Mat Gar Fac Gar Fac Low Low Zio Pro Fac Ext Cet Arc Hub Fac Upp Upp War Pro Fac Upp Upp Zhi Pro Res Gar Res Res Tes Acc Com Total 26859 | 60 528 308 1197 455 435 1202 328 1808 217 571 414 1230 445 1467 680 313 422 164 584 572 728 781 363 196 538 646 214 425 1446 919 1869 1339 688 652 2655 Wait 2663 | . 3 . 310 3 19 25 7 40 21 57 14 . 41 231 46 85 177 4 99 99 68 11 58 11 29 2 . 42 79 51 375 1 151 72 432 Move 21057 | 50 447 273 788 427 316 1024 287 1476 179 494 347 1198 359 1034 459 182 215 145 416 448 645 717 275 164 480 633 186 357 1143 734 1152 1224 398 386 1999 Hop 1 | . . . . . . . . . . . . . . . . . . . . . . . . . . . . . . 1 . . . . . Pick Up 359 | 5 16 8 23 2 14 9 6 21 . 4 5 7 . 26 10 11 8 1 9 2 1 9 1 4 3 6 5 2 30 19 33 18 16 10 15 Fast Attach 203 | 5 3 4 11 . 1 . 7 20 2 . 1 7 . 8 6 6 2 . . . . . 2 . . . 5 . 18 12 19 19 5 8 32 Attach 211 | . 2 . 5 1 11 9 2 9 . 1 6 1 . 28 6 1 4 . 4 . 1 4 3 2 5 . 3 1 18 17 14 6 6 19 22 Detach 28 | . . . 1 . . . . . . . . . . 11 . . 1 . . . . . . . . . 1 . 4 . 3 . . . 7 Swap 384 | . 2 2 7 . 13 16 . 10 4 2 3 4 10 34 12 3 3 9 19 9 4 7 8 3 3 1 . 8 21 3 75 15 40 34 . Drop 294 | . 7 11 14 2 5 3 2 27 2 2 . 12 . 10 13 18 4 . 3 . 1 4 . . 2 3 9 3 27 1 47 28 14 2 18 Fire 1382 | . 48 10 37 20 55 90 17 124 8 9 38 . 30 59 51 7 8 4 28 13 8 29 16 12 16 1 5 11 99 77 123 27 56 118 128 Melee 122 | . . . 1 . 1 11 . 26 1 2 . 1 5 26 5 . . 1 6 1 . . . . . . . 1 7 . 26 1 . . . Ram 1 | . . . . . . . . . . . . . . . . . . . . . . . . . . . . . . . 1 . . . . Kick . | . . . . . . . . . . . . . . . . . . . . . . . . . . . . . . . . . . . . Crush 4 | . . . . . . . . . . . . . . . . . . . . . . . . . . . . . . . 1 . . 3 . Escape Stasis 51 | . . . . . . 15 . 32 . . . . . . . . . . . . . . . . . . . . . 4 . . . . . Rewire 97 | . . . . . . . . 23 . . . . . . 72 . . . . . . . . . . . . . . . . . 2 . . Trap . | . . . . . . . . . . . . . . . . . . . . . . . . . . . . . . . . . . . . Miscellaneous 2 | . . . . . . . . . . . . . . . . . . . . . . . . . . . . . . . . . . . 2 Route ------- -11/Scrapyard -10/Materials (discovered 2 exits: *Mat / *Min) -10/Mines (discovered 2 exits: *Mat x2) -9/Materials (discovered 5 exits: *Mat x3 / [*Min x2]) -9/Mines (discovered 2 exits: *Mat x2) -8/Materials (discovered 3 exits: *Fac x2 / Gar) -8/Garrison (discovered 3 exits: *Fac x3) -7/Factory -7/Garrison (discovered 3 exits: [*Fac x3]) -7/Factory (discovered 2 exits: *Fac / *Low) -7/Lower Caves -7/Lower Caves -7/Zion -6/Proximity Caves -6/Factory (discovered 8 exits: *Fac x4 / Low x2 / *Ext x2) -6/Extension (discovered 2 exits: *Fac / *Cet) -6/Cetus (discovered 2 exits: *Fac / *Arc) -6/Archives (discovered 3 exits: *Fac / *Hub x2) -6/Hub_04(d) -5/Factory (discovered 2 exits: *Upp x2) -5/Upper Caves -5/Upper Caves (discovered 2 exits: *Fac / *War) -5/Warlord -4/Proximity Caves -4/Factory (discovered 2 exits: *Upp x2) -4/Upper Caves -4/Upper Caves -4/Zhirov -3/Proximity Caves -3/Research (discovered 4 exits: *Res / Arm / Qua / Gar) -3/Garrison (discovered 3 exits: *Res x3) -3/Research (discovered 2 exits: *Res / *Qua) -2/Research (discovered 4 exits: *Acc x3 / *Tes) -2/Testing -1/Access (discovered 2 exits: Sur / *Com) -1/Command To Epsilon Eridani History --------- Turn | Location | Event 47 | -11/Scrapyard | Discovered new exit (range 16) 93 | -11/Scrapyard | Entered Materials 317 | -10/Materials | Build established: Mutant 450 | -10/Materials | Discovered new exit (range 14) 596 | -10/Materials | Discovered new exit (range 11) 961 | -10/Materials | Learned Recycling recycling unit intel 970 | -10/Materials | Entered Mines 1023 | -10/Mines | Met a Derelict who couldn't figure out how to use a Trap Extractor 1089 | -10/Mines | Discovered new exit (range 7) 1099 | -10/Mines | Received a Rocket Launcher from a helpful Derelict 1201 | -10/Mines | Assisted by bots powering up and referring to "LRC-V3" 1267 | -10/Mines | Found a damaged Exp. Sensor Array with a note attached 1270 | -10/Mines | Found Prototype Device 1282 | -10/Mines | A weapon hastily lodged in a ceiling crevice suddenly fell to the ground 1286 | -10/Mines | Identified Exp. Sensor Array 1346 | -10/Mines | Discovered new exit (range 5) 1357 | -10/Mines | Entered Materials 1357 | -9/Materials | Accompanied by 3 allies 1357 | -9/Materials | Evolved 2 slots: Utility x1, Weapon x1 1479 | -9/Materials | Destroyed 7 combat bots 1517 | -9/Materials | Discovered new exit (range 15) 1671 | -9/Materials | Build established: Tank 1879 | -9/Materials | Discovered new exit (range 14) 2321 | -9/Materials | Discovered new exit (range 16) 2656 | -9/Materials | Discovered new exit (range 7) 2845 | -9/Materials | Identified exit to Materials 2904 | -9/Materials | Learned Storage stockpile data 2993 | -9/Materials | Learned Storage emergency access door positions 3043 | -9/Materials | Learned Storage emergency access door positions 3073 | -9/Materials | Learned Storage stockpile data 3162 | -9/Materials | Learned Storage emergency access door positions 3220 | -9/Materials | Loaded intel: 6 trap records 3228 | -9/Materials | Entered Mines 3228 | -9/Mines | Accompanied by 1 ally 3245 | -9/Mines | Met a Derelict bent on vengeance 3293 | -9/Mines | Destroyed 7 combat bots 3547 | -9/Mines | Learned 2 Materials zone layouts 3916 | -9/Mines | Entered Materials 3916 | -8/Materials | Accompanied by 2 allies 3916 | -8/Materials | Evolved 2 slots: Utility x1, Weapon x1 3917 | -8/Materials | Identified exit to Factory 3925 | -8/Materials | Led the pair of lost Derelicts to an unsafe place 4066 | -8/Materials | Destroyed 8 combat bots 4169 | -8/Materials | Discovered exit to Factory (range 11) 4222 | -8/Materials | Destroyed 7 combat bots 4296 | -8/Materials | Lost 5 parts (1p1u3w) 4588 | -8/Materials | Identified exit to Garrison 4588 | -8/Materials | Entered Garrison 4682 | -8/Garrison | Phase Generator disabled 4708 | -8/Garrison | Triggered checkpoint 4725 | -8/Garrison | Garrison Relay disabled 4785 | -8/Garrison | Build established: Gunner 4820 | -8/Garrison | Triggered checkpoint 4921 | -8/Garrison | Triggered checkpoint 4944 | -8/Garrison | Garrison Relay disabled 5130 | -8/Garrison | Triggered checkpoint 5162 | -8/Garrison | Triggered checkpoint 5255 | -8/Garrison | Discovered exit to Factory (range 8) 5288 | -8/Garrison | Garrison Relay disabled 5306 | -8/Garrison | Triggered checkpoint 5344 | -8/Garrison | Discovered exit to Factory (range 24) 5344 | -8/Garrison | Discovered exit to Factory (range 41) 5344 | -8/Garrison | Discovered exit to Factory (range 65) 5596 | -8/Garrison | Triggered checkpoint 5652 | -8/Garrison | Triggered checkpoint 5682 | -8/Garrison | Garrison Relay disabled 5871 | -8/Garrison | Lost 3 parts (1n1u1w) 6003 | -8/Garrison | Core integrity fell below 50% 6012 | -8/Garrison | Rescued a captive Derelict 6022 | -8/Garrison | Triggered checkpoint 6052 | -8/Garrison | Garrison Relay disabled 6127 | -8/Garrison | Build established: Scavenger-Tank 6421 | -8/Garrison | Entered Factory 6421 | -7/Factory | Accompanied by 1 ally 6421 | -7/Factory | Evolved 2 slots: Propulsion x1, Utility x1 6821 | -7/Factory | First assault squad dispatched 6894 | -7/Factory | Identified exit to Garrison 6894 | -7/Factory | Entered Garrison 6938 | -7/Garrison | Garrison Relay disabled 7016 | -7/Garrison | Triggered checkpoint 7043 | -7/Garrison | Garrison Relay disabled 7364 | -7/Garrison | Triggered checkpoint 7370 | -7/Garrison | Triggered checkpoint 7470 | -7/Garrison | Lost 5 parts (1p2n1u1w) 7569 | -7/Garrison | Discovered new exit (range 13) 7875 | -7/Garrison | Phase Generator disabled 7948 | -7/Garrison | Triggered checkpoint 8000 | -7/Garrison | Garrison Relay disabled 8005 | -7/Garrison | Lost 3 parts (1u2w) 8154 | -7/Garrison | Triggered checkpoint 8172 | -7/Garrison | Garrison Relay disabled 8462 | -7/Garrison | Triggered checkpoint 8469 | -7/Garrison | Discovered new exit (range 15) 8631 | -7/Garrison | Triggered checkpoint 8644 | -7/Garrison | Discovered new exit (range 13) 8845 | -7/Garrison | Garrison Relay disabled 8846 | -7/Garrison | Triggered checkpoint 8940 | -7/Garrison | Triggered checkpoint 9910 | -7/Garrison | Entered Factory 9910 | -7/Factory | Accompanied by 2 allies 10033 | -7/Factory | Discovered new exit (range 8) 10047 | -7/Factory | Build established: Scavenger-Gunner 10105 | -7/Factory | Discovered new exit (range 9) 10147 | -7/Factory | Identified exit to Lower Caves 10205 | -7/Factory | Entered Lower Caves 10233 | -7/Lower Caves | Met a Warlord Commander 10234 | -7/Lower Caves | Learned location of Warlord (-5) 10235 | -7/Lower Caves | Warlord Commander delivered Encrypted Comm Array 10238 | -7/Lower Caves | Found Encrypted Comm Array 10510 | -7/Lower Caves | Build established: Scavenger-Mutant 10722 | -7/Lower Caves | Learned location of Zion (-7) 10860 | -7/Lower Caves | Build established: Scavenger-Skirmisher 10914 | -7/Lower Caves | Discovered new exit (range 11) 10926 | -7/Lower Caves | Identified exit to Lower Caves 10932 | -7/Lower Caves | Ambushed by research squad 10934 | -7/Lower Caves | Entered another Lower Caves area 11057 | -7/Lower Caves | Learned Factory garrison access intel 11135 | -7/Lower Caves | Attracted the attention of an 0b10 outpost 11164 | -7/Lower Caves | Core integrity fell below 50% 11221 | -7/Lower Caves | Lost 5 parts (2n3w) 11227 | -7/Lower Caves | Destroyed 9 combat bots 11486 | -7/Lower Caves | Attracted the attention of an 0b10 checkpoint 11600 | -7/Lower Caves | Discovered new exit (range 11) 11617 | -7/Lower Caves | Identified exit to Zion 11680 | -7/Lower Caves | Entered Zion 11755 | -7/Zion | Given the Hacking Drone Bay 11755 | -7/Zion | Found Prototype Device 11796 | -7/Zion | Build established: Skirmisher 11826 | -7/Zion | System corruption cleaned by Quarantine Array 11923 | -7/Zion | Received a hallucinogenic algorithm 11923 | -7/Zion | Ran a hallucination algorithm 11932 | -7/Zion | Discovered new exit (range 13) 12054 | -7/Zion | Learned location of Armory (-3) 12168 | -7/Zion | Found Prototype Device 12168 | -7/Zion | Identified Mobile Refinery Mk. CCLXVII 12583 | -7/Zion | Identified Hacking Drone Bay 12862 | -7/Zion | Met Imprinter 12892 | -7/Zion | Build established: Tank 12996 | -7/Zion | Learned location of Quarantine (-3) 13031 | -7/Zion | Found Prototype Processor 13031 | -7/Zion | Identified Spectral Analyzer 13035 | -7/Zion | Found Prototype Processor 13035 | -7/Zion | Identified Exp. Targeting Computer 13039 | -7/Zion | Found Prototype Processor 13039 | -7/Zion | Identified Exp. Signal Interpreter 13054 | -7/Zion | Found Prototype Hackware 13123 | -7/Zion | Found Prototype Device 13123 | -7/Zion | Identified Phasing AFG 13432 | -7/Zion | Learned Factory stockpile data 13585 | -7/Zion | Found CR-A16's Pointy Stick 13795 | -7/Zion | Learned 4 Factory zone layouts 13988 | -7/Zion | Identified exit to Proximity Caves 13990 | -7/Zion | Entered Proximity Caves 14135 | -6/Proximity Caves | Spotter reported a threat 14343 | -6/Proximity Caves | Spotter reported a threat 14665 | -6/Proximity Caves | Spotter reported a threat 14760 | -6/Proximity Caves | Discovered new exit (range 9) 14797 | -6/Proximity Caves | Identified exit to Factory 14845 | -6/Proximity Caves | Entered Factory 14845 | -6/Factory | Evolved 2 slots: Propulsion x1, Utility x1 14848 | -6/Factory | Loaded intel: 3 garrison access locations 14956 | -6/Factory | Identified Exp. System Shield 14964 | -6/Factory | Identified exit to Factory 15821 | -6/Factory | Lost 8 parts (1p1n1u5w) 16025 | -6/Factory | Build established: Hacker-Mutant 16309 | -6/Factory | Identified exit to Lower Caves 16309 | -6/Factory | Identified exit to Extension 16574 | -6/Factory | Lost 5 parts (1p2n1u1w) 16814 | -6/Factory | Fabricated X-82 Rainmaker (x2) 16930 | -6/Factory | Fabricated X-82 Rainmaker? 17151 | -6/Factory | Entered Extension 17151 | -6/Extension | Accompanied by 4 allies 17236 | -6/Extension | Rescued A7 17426 | -6/Extension | Rescued a captive Derelict 17427 | -6/Extension | Rescued a captive Derelict 17469 | -6/Extension | Rescued a captive Derelict 17473 | -6/Extension | Rescued a captive Derelict 17501 | -6/Extension | First assault squad dispatched 17559 | -6/Extension | Build established: Commander-Skirmisher 17658 | -6/Extension | Spotted B-75 Beast 17661 | -6/Extension | Spotted B-75 Beast 17684 | -6/Extension | Allies destroyed B-75 Beast 17699 | -6/Extension | Core integrity fell below 50% 17701 | -6/Extension | Allies destroyed B-75 Beast 17707 | -6/Extension | Lost 12 allies 17720 | -6/Extension | Lost 3 parts (1p2w) 18055 | -6/Extension | Rescued a captive Derelict 18074 | -6/Extension | Rescued a captive Derelict 18165 | -6/Extension | Discovered exit to Factory (range 10) 18167 | -6/Extension | Discovered new exit (range 6) 18174 | -6/Extension | Identified exit to Cetus 18201 | -6/Extension | Entered Cetus 18201 | -6/Cetus | Accompanied by 7 allies (A7) 18206 | -6/Cetus | Acquired a Cetus Manufacturing Module code from A7 18222 | -6/Cetus | Spotted Cetus Guard 18222 | -6/Cetus | Spotted Cetus Guard 18223 | -6/Cetus | Destroyed Cetus Guard 18225 | -6/Cetus | Spotted Cetus Guard 18234 | -6/Cetus | Spotted Cetus Guard 18239 | -6/Cetus | Destroyed Cetus Guard 18249 | -6/Cetus | Allies destroyed Cetus Guard 18254 | -6/Cetus | Allies destroyed Cetus Guard 18397 | -6/Cetus | Started Cetus Manufacturing Module 18408 | -6/Cetus | Escorted A7 to Cetus Mainframe 18422 | -6/Cetus | Manufactured an Enhanced Grunt 18424 | -6/Cetus | Discovered new exit (range 15) 18447 | -6/Cetus | Manufactured an Enhanced Grunt 18472 | -6/Cetus | Manufactured an Enhanced Grunt 18497 | -6/Cetus | Manufactured an Enhanced Grunt 18511 | -6/Cetus | Spotted Cetus Guard 18511 | -6/Cetus | Spotted Cetus Guard 18514 | -6/Cetus | Spotted Cetus Guard 18514 | -6/Cetus | Spotted Cetus Guard 18514 | -6/Cetus | Destroyed Cetus Guard 18520 | -6/Cetus | Allies destroyed Cetus Guard 18522 | -6/Cetus | Manufactured an Enhanced Grunt 18525 | -6/Cetus | Allies destroyed Cetus Guard 18530 | -6/Cetus | Allies destroyed Cetus Guard 18540 | -6/Cetus | Discovered exit to Factory (range 15) 18548 | -6/Cetus | Met Revision 17 18557 | -6/Cetus | Lost 3 allies 18619 | -6/Cetus | Identified exit to Archives 18644 | -6/Cetus | Entered Archives 18644 | -6/Archives | Accompanied by 9 allies (A7) 18649 | -6/Archives | Received a hacking code to weaken MAIN.C 18697 | -6/Archives | Discovered exit to Factory (range 14) 18718 | -6/Archives | Discovered new exit (range 16) 18766 | -6/Archives | System corruption reached 10% 18771 | -6/Archives | Discovered new exit (range 16) 18829 | -6/Archives | Identified exit to Hub_04(d) 18942 | -6/Archives | Build established: Scavenger-Tank 19216 | -6/Archives | Entered Hub_04(d) 19216 | -6/Hub_04(d) | Accompanied by 6 allies 19329 | -6/Hub_04(d) | Discovered exit to Factory (range 10) 19353 | -6/Hub_04(d) | Network Hub disabled 19428 | -6/Hub_04(d) | Network Hub disabled 19474 | -6/Hub_04(d) | Lost 3 allies 19484 | -6/Hub_04(d) | Entered Factory 19484 | -5/Factory | Accompanied by 3 allies 19484 | -5/Factory | Evolved 2 slots: Utility x1, Weapon x1 19627 | -5/Factory | Identified exit to Upper Caves 19877 | -5/Factory | Lost 3 allies 20384 | -5/Factory | First assault squad dispatched 20399 | -5/Factory | Entered Upper Caves 20547 | -5/Upper Caves | Attracted the attention of an 0b10 checkpoint 20694 | -5/Upper Caves | Spotted B-75 Beast 20720 | -5/Upper Caves | Destroyed B-75 Beast 21042 | -5/Upper Caves | Learned Factory terminal intel 21257 | -5/Upper Caves | Discovered new exit (range 15) 21277 | -5/Upper Caves | Identified exit to Upper Caves 21279 | -5/Upper Caves | Entered another Upper Caves area 21367 | -5/Upper Caves | Discovered new exit (range 6) 21719 | -5/Upper Caves | Encountered a Warlord checkpoint 22403 | -5/Upper Caves | Discovered new exit (range 10) 22403 | -5/Upper Caves | Spotted B-75 Beast 22413 | -5/Upper Caves | Identified exit to Warlord 22414 | -5/Upper Caves | Entered Warlord 22456 | -5/Warlord | Discovered new exit (range 12) 22581 | -5/Warlord | Learned Factory terminal intel 22581 | -5/Warlord | Learned Factory fabricator intel 22581 | -5/Warlord | Learned Research garrison access intel 22582 | -5/Warlord | Learned 4 Research zone layouts 22582 | -5/Warlord | Learned 4 Armory zone layouts 22584 | -5/Warlord | Learned location of Command (-1) 23158 | -5/Warlord | Warlord's base attacked by MAIN.C 23210 | -5/Warlord | Met Warlord 23257 | -5/Warlord | Found Prototype Energy Gun 23260 | -5/Warlord | Found Prototype Energy Gun 23382 | -5/Warlord | Identified Vortex Rifle (x2) 23418 | -5/Warlord | Spotted B-86 Titan 23428 | -5/Warlord | Spotted B-75 Beast 23480 | -5/Warlord | Lost 7 allies 23508 | -5/Warlord | Warlord forces counterattacked 23530 | -5/Warlord | Spotted B-86 Titan 23566 | -5/Warlord | Lost 3 allies 23616 | -5/Warlord | Spotted Executioner 23623 | -5/Warlord | Destroyed Executioner 23648 | -5/Warlord | Spotted Executioner 23652 | -5/Warlord | Found Prototype Processor 23658 | -5/Warlord | Spotted Striker 23658 | -5/Warlord | Spotted Striker 23669 | -5/Warlord | Destroyed Striker 23680 | -5/Warlord | Destroyed Striker 23704 | -5/Warlord | Identified exit to Proximity Caves 23705 | -5/Warlord | Entered Proximity Caves 23708 | -4/Proximity Caves | Destroyed 8 combat bots 23712 | -4/Proximity Caves | Lost 9 allies 23718 | -4/Proximity Caves | Lost 3 parts (3w) 23826 | -4/Proximity Caves | Spotted B-86 Titan 23847 | -4/Proximity Caves | Destroyed B-86 Titan 24262 | -4/Proximity Caves | Discovered new exit (range 8) 24273 | -4/Proximity Caves | Identified exit to Factory 24274 | -4/Proximity Caves | Entered Factory 24274 | -4/Factory | Evolved 2 slots: Propulsion x2 24275 | -4/Factory | Loaded intel: 26 terminal locations 24276 | -4/Factory | Loaded intel: 6 fabricator locations 24468 | -4/Factory | Identified exit to Upper Caves 24589 | -4/Factory | Entered Upper Caves 24855 | -4/Upper Caves | Identified Exp. Core Analyzer 25003 | -4/Upper Caves | Encountered a Warlord checkpoint 25087 | -4/Upper Caves | Entered a destroyed Warlord outpost 25110 | -4/Upper Caves | Learned 4 Research zone layouts 25174 | -4/Upper Caves | Discovered new exit (range 6) 25188 | -4/Upper Caves | Attracted the attention of an 0b10 checkpoint 25209 | -4/Upper Caves | Identified exit to Upper Caves 25452 | -4/Upper Caves | Entered another Upper Caves area 25562 | -4/Upper Caves | Encountered a Warlord checkpoint 26323 | -4/Upper Caves | Discovered new exit (range 8) 26333 | -4/Upper Caves | Identified exit to Zhirov 26478 | -4/Upper Caves | Entered Zhirov 26478 | -4/Zhirov | Discovered new exit (range 3) 26507 | -4/Zhirov | Met Zhirov 26543 | -4/Zhirov | Found Alien Artifact 26543 | -4/Zhirov | Identified Integrated Dissipator 26543 | -4/Zhirov | Installed Integrated Dissipator, increased core heat dissipation (+20) 26637 | -4/Zhirov | Found Alien Artifact 26674 | -4/Zhirov | Learned location of Testing (-2) 26688 | -4/Zhirov | Zhirov requested help retrieving the SGEMP Prototype 26792 | -4/Zhirov | Identified exit to Proximity Caves 26808 | -4/Zhirov | Entered Proximity Caves 26869 | -3/Proximity Caves | Found Alien Artifact 27224 | -3/Proximity Caves | Attracted the attention of an 0b10 checkpoint 27473 | -3/Proximity Caves | Discovered new exit (range 5) 27478 | -3/Proximity Caves | Identified exit to Research 27481 | -3/Proximity Caves | Entered Research 27481 | -3/Research | Evolved 2 slots: Utility x2 27482 | -3/Research | Identified exit to Armory 27482 | -3/Research | Identified exit to Quarantine 27484 | -3/Research | Loaded intel: 4 garrison access locations 27571 | -3/Research | Found Prototype Processor 27572 | -3/Research | Identified Exp. Terrain Scan Processor 27577 | -3/Research | Found Exp. Terrain Scan Processor 27681 | -3/Research | Revision forces began assault on 0b10 27721 | -3/Research | Destroyed 10 combat bots 27727 | -3/Research | Met up with Revision 17++ 28181 | -3/Research | Research terminal network offline 28277 | -3/Research | Spotted Striker 28576 | -3/Research | Found Fusion Bomb Launcher 28780 | -3/Research | Identified exit to Garrison 28848 | -3/Research | Discovered new exit (range 4) 29176 | -3/Research | Spotted Striker 29178 | -3/Research | Spotted Striker 29231 | -3/Research | Spotted Striker 29243 | -3/Research | Spotted Striker 29283 | -3/Research | Lost 3 allies 29315 | -3/Research | Spotted Striker 29318 | -3/Research | Spotted Executioner 29325 | -3/Research | Destroyed Executioner 29328 | -3/Research | Destroyed Striker 29371 | -3/Research | Spotted Striker 29371 | -3/Research | Destroyed Striker 29623 | -3/Research | Found Fusion Bomb Launcher 29724 | -3/Research | Spotted Executioner 29726 | -3/Research | Spotted Striker 29731 | -3/Research | Spotted Striker 29749 | -3/Research | Entered Garrison 29815 | -3/Garrison | Spotted B-86 Titan 29823 | -3/Garrison | Triggered checkpoint 29846 | -3/Garrison | Destroyed B-86 Titan 29895 | -3/Garrison | Destroyed 8 combat bots 29895 | -3/Garrison | Lost 5 parts (1n4u) 29914 | -3/Garrison | Triggered checkpoint 29968 | -3/Garrison | Lost 4 parts (1p1n2w) 30065 | -3/Garrison | Triggered checkpoint 30110 | -3/Garrison | Garrison Relay disabled 30130 | -3/Garrison | Triggered checkpoint 30196 | -3/Garrison | Learned Research security intel 30255 | -3/Garrison | Discovered new exit (range 13) 30265 | -3/Garrison | Spotted B-86 Titan 30309 | -3/Garrison | Destroyed B-86 Titan 30342 | -3/Garrison | Lost 9 parts (1n3u5w) 30567 | -3/Garrison | Discovered new exit (range 11) 30646 | -3/Garrison | Found embedded Infiltrators 30676 | -3/Garrison | Build established: Scavenger-Gunner 30679 | -3/Garrison | Found Adv. Powered Armor 30681 | -3/Garrison | Found Adv. Powered Armor 30684 | -3/Garrison | Found Adv. Powered Armor 30687 | -3/Garrison | Found Adv. Powered Armor 30769 | -3/Garrison | Triggered checkpoint 30802 | -3/Garrison | Garrison Relay disabled 30819 | -3/Garrison | Triggered checkpoint 31006 | -3/Garrison | Identified exit to Research 31008 | -3/Garrison | Attempted to access garrison exit controls, blocked by remote lockdown 31183 | -3/Garrison | Attempted to access garrison exit controls, blocked by remote lockdown 31265 | -3/Garrison | Triggered checkpoint 31365 | -3/Garrison | Triggered checkpoint 31404 | -3/Garrison | Discovered exit to Research (range 10) 31419 | -3/Garrison | Entered Research 32011 | -3/Research | Found Spectral Analyzer 32017 | -3/Research | Found Spectral Analyzer 32308 | -3/Research | System corruption reached 10% 32606 | -3/Research | Garrison activated, responded to threat 32627 | -3/Research | Build established: Scavenger-Assassin 32867 | -3/Research | Discovered exit to Quarantine (range 24) 33388 | -3/Research | Found Powered Armor 33426 | -3/Research | Garrison activated, responded to threat 33669 | -3/Research | First assault squad dispatched 33763 | -3/Research | Garrison activated, responded to threat 33799 | -3/Research | Core integrity fell below 50% 34062 | -3/Research | Garrison activated, responded to threat 34155 | -3/Research | Discovered new exit (range 19) 34194 | -3/Research | Destroyed 9 combat bots 34210 | -3/Research | Identified exit to Research 34259 | -3/Research | Entered another Research area 34259 | -2/Research | Warlord forces began assault on 0b10 34259 | -2/Research | Evolved 2 slots: Utility x1, Weapon x1 34284 | -2/Research | Distinguished unit "Lobotomizers" dispatched to help 34284 | -2/Research | Distinguished unit "Railsplitters" dispatched to help 34369 | -2/Research | Research machine network offline 34555 | -2/Research | Build established: Scavenger-Executioner 34582 | -2/Research | Discovered new exit (range 8) 34672 | -2/Research | Spotted Executioner 34679 | -2/Research | Spotted Executioner 34711 | -2/Research | Found Corrupted Exp. Core Analyzer 34809 | -2/Research | Borebot progress halted 34870 | -2/Research | Borebot progress halted 35054 | -2/Research | Spotted Executioner 35102 | -2/Research | Discovered new exit (range 15) 35110 | -2/Research | Spotted Striker 35115 | -2/Research | Destroyed Striker 35139 | -2/Research | Identified exit to Access 35146 | -2/Research | Lost 3 allies 35286 | -2/Research | Borebot progress halted 35302 | -2/Research | Lost 3 allies 35302 | -2/Research | Spotted Striker 35302 | -2/Research | Spotted Striker 35311 | -2/Research | Destroyed Striker 35341 | -2/Research | Lost 3 allies 35566 | -2/Research | Spotted Striker 35569 | -2/Research | Spotted Striker 35670 | -2/Research | Discovered exit to Access (range 11) 35761 | -2/Research | Given Cave Seal Controls access code 35780 | -2/Research | Discovered new exit (range 7) 36232 | -2/Research | Identified exit to Testing 36265 | -2/Research | Entered Testing 36310 | -2/Testing | Lost 3 allies 36457 | -2/Testing | Spotted Striker 36479 | -2/Testing | Destroyed Striker 36509 | -2/Testing | Spotted Alpha 7 36638 | -2/Testing | Scanned by Researcher 36690 | -2/Testing | Destroyed Alpha 7 36698 | -2/Testing | Found Prototype Processor 36702 | -2/Testing | Found Exp. Targeting Computer 36710 | -2/Testing | Lost 4 parts (1p3w) 36744 | -2/Testing | Identified Exp. Target Analyzer 36748 | -2/Testing | Stole the SGEMP Prototype 36788 | -2/Testing | Spotted Striker 36852 | -2/Testing | Spotted Alpha 7 36887 | -2/Testing | Destroyed Alpha 7 36906 | -2/Testing | Found Exp. Targeting Computer 37172 | -2/Testing | Rewired PH-OSQONXYN2K 37215 | -2/Testing | Protovariant out of control (PH-OSQONXYN2K) 37215 | -2/Testing | Spotted PH-OSQONXYN2K 37232 | -2/Testing | Garrison activated, responded to threat 37276 | -2/Testing | Entered Access 37276 | -1/Access | Evolved 2 slots: Utility x2 37277 | -1/Access | Delivered the SGEMP Prototype to Zhirov 37277 | -1/Access | Zhirov transferred Access data 37278 | -1/Access | Loaded intel: 127 machine locations 37278 | -1/Access | Loaded intel: 87 trap records 37278 | -1/Access | Identified exit to Surface 37278 | -1/Access | Discovered exit to Surface (range 225) 37278 | -1/Access | Identified exit to Command 37278 | -1/Access | Discovered exit to Command (range 93) 37424 | -1/Access | Zhirov warped through subspace 37526 | -1/Access | First assault squad dispatched 37860 | -1/Access | Garrison activated, responded to threat 37933 | -1/Access | Destroyed 15 combat bots 37937 | -1/Access | Lost 4 parts (2u2w) 38059 | -1/Access | Lost 4 parts (1n2u1w) 38142 | -1/Access | Energy Cycler disabled 38169 | -1/Access | System corruption reached 10% 38211 | -1/Access | Destroyed 9 combat bots 38230 | -1/Access | Garrison activated, responded to threat 38263 | -1/Access | Lost 17 parts (1p3n5u8w) 38328 | -1/Access | Entered Command 38478 | -1/Command | Build established: Scavenger-Mutant 38969 | -1/Command | Disengaged cave seal 38969 | -1/Command | Derelicts emerged from the dark tunnel 38969 | -1/Command | Welcomed Warlord to Command 38996 | -1/Command | Build established: Scavenger-Executioner 39276 | -1/Command | Warlord commented on Warlord statues 39284 | -1/Command | Spotted Combat Programmer 39285 | -1/Command | Spotted Combat Programmer 39286 | -1/Command | Combat Programmer assimilated allied 0R-C7W(d) 39287 | -1/Command | Spotted M Guard 39291 | -1/Command | Combat Programmer assimilated allied 49-XE5(d) 39297 | -1/Command | Combat Programmer assimilated allied TC-77I(i) 39300 | -1/Command | Spotted M Guard 39300 | -1/Command | Combat Programmer assimilated allied Z5-EA9(M) 39301 | -1/Command | Combat Programmer assimilated allied YX-CVJ(i) 39306 | -1/Command | Destroyed Combat Programmer 39338 | -1/Command | Lost 13 allies 39350 | -1/Command | All MAIN.C guards destroyed 39359 | -1/Command | Lost 16 parts (1p4n3u8w) 39386 | -1/Command | Found Prototype Launcher 39386 | -1/Command | Identified Ragnarok Missile Launcher 39407 | -1/Command | Identified Dimensional Node Initializer 39407 | -1/Command | Initialized slip node 39589 | -1/Command | Build established: Scavenger-Mutant 39923 | -1/Command | Disengaged cave seal 39930 | -1/Command | Spotted Alpha 7 39932 | -1/Command | Spotted Striker 39933 | -1/Command | Spotted Striker 39942 | -1/Command | Spotted Alpha 7 39958 | -1/Command | P-80 Master assimilated allied 16-RN6(l) 39963 | -1/Command | Destroyed Alpha 7 39999 | -1/Command | Lost 10 allies 40043 | -1/Command | Spotted Executioner 40043 | -1/Command | Spotted Executioner 40043 | -1/Command | Spotted Executioner 40043 | -1/Command | Spotted Executioner 40054 | -1/Command | Warlord destroyed during the assault 40074 | -1/Command | Core integrity fell below 50% 40074 | -1/Command | Spotted B-99 Colossus 40078 | -1/Command | Destroyed Executioner 40086 | -1/Command | Destroyed Executioner 40115 | -1/Command | Spotted B-99 Colossus 40131 | -1/Command | Destroyed B-99 Colossus 40153 | -1/Command | Lost 12 allies 40195 | -1/Command | P-80 Master assimilated allied A9-3MG(K) 40195 | -1/Command | Spotted A9-3MG(K) 40218 | -1/Command | System corruption reached 30% 40254 | -1/Command | Lost 8 parts (3n2u3w) 40272 | -1/Command | Discovered exit to Surface (range 15) 40279 | -1/Command | Found Prototype Ballistic Gun 40279 | -1/Command | Identified Multirail 40285 | -1/Command | Found Multirail 40308 | -1/Command | Found Exp. Core Analyzer 40313 | -1/Command | Found Exp. Core Analyzer 40323 | -1/Command | Found Exp. Core Analyzer 40575 | -1/Command | Build established: Scavenger-Executioner 40579 | -1/Command | Identified Transdimensional Reconstructor 40579 | -1/Command | Failed to warp due to unstable space 41107 | -1/Command | Spotted B-99 Colossus 41570 | -1/Command | Destroyed 12 combat bots 41586 | -1/Command | Lost 9 parts (2p2n3u2w) 41620 | *** | Escaped! Last Messages --------------- 41558_ Penetrated by Slug. 41562_ Slug penetrates Earth. 41570_ M4W &YWN3RCXRNZY=EPJ6FS3V 41582_ Acquired Quantum Reactor. 41585_ System corrupted: Matter fused (-5). 41608_ ALERT: Potential suspicious activity detected, Programmers report to Command Zone 9Y. 41609_ System corrupted: Matter fused (-5). 41610_ K-01 Serf collects debris. 41610_ Acquired 186 matter. 41611_ Acquired 51 matter. 41612_ Acquired 13 matter. 41612_ Acquired 10 matter. 41614_ K-01 Serf collects debris. 41616_ Acquired 15 matter. 41618_ K-01 Serf collects debris. [Achievement: 50k Club] [Achievement: Punisher] [Achievement: Victory By Combat] Map ----- +----------------------------------------------------+ | + #### "###" ##?????### #### | | ""##+"##### ""##"+"####????# #??# ######### | | "! # "" #????# #??# ######### | | # + #" #????# #??# ## # | | # !! " ## ###### #### ## # | | ####+# !! # * ## # + + | | ???# #""+"#####" ## =! # ####+####+## # | | ?### # !!! ""+### = # ## # # # | | ?# # !! "" #?# + ## [# # # | | ?# + ! " #?# ! " ## # ###+#### | | ?# " ## #?# " ## = # #?# #??# | | ## " ## #?#######"#"+######## #?# #??# | | ## " ## ####### ## #?# #??# | | #" " ## + = ## #?# #??# | | #" + ########## ######?# #??# | | "" ###"+######????????# #??????# #??# | | "" #?#" #?????????????# #?????## ##?# | | "" ###" #?????????????##############?????# ! #?# | | ## #????????????????????????????????# #?# | | ## #????????##############??????????# #?# | | ## #????????# #??????????## ##?# | | # #????????# #???????????# #??# | | " #????????# ^^^^ ^^ #????######## #??# | | " ##???????# ^ ^ #????# # #??# | | #???????# ^ ^ #????# # #### | | #???????# ^ @" ^ #????# + | | "### #???????# ^ "" ^ #????# # #### | | #" # ####+###?????# ^ ^ #????# ! # #??# | | [ #?????# ^ #????# # #??# | | #?????# ^^^% ^ ^ #???######### #??# | | #?????# % #???# ## ##?# | | "" "" #?????# = % #???# # #?# | | """" """" #?????#### ^^^ ####???# + #?# | | """" """" #???????#! ^^^ %#?????# # #?# | | "" "" #???????##^ ^%^^!#?????# #####?# | | #???????# ^^^^^^ #?????# #?????# | | #???????##%^^^!^;#???################ | | #???????# ^^^^^^ #???# ## | | #"+###########???????##^= ^^ %#???# ## | | " #?????????#*^!^%k^%#???# T " ## | | "" #?????#???#"^^^ ^^=#???# ## | | "" #??#??# ####^^ ^^=#???# ## | | " ### ?### ###%"%%"!%#???# ## | | ## ### ### " %%%=!#?###= ## | | ### " % !"###"%""+"##+######## | | # # %%% % !=[ ####### | | # # % %% % %! # | | " # % % % %% /[==! # | | " " + %% % =%%] [ # | | "Y" ""# """"""""###"+### # | +----------------------------------------------------+ Best States ------------- Heat Dissipation 97 Energy Generation 25 Energy Capacity 825 Matter Stores 300 Matter Capacity 300 Sight Range 24 Robot Scan Range 20 Terrain Scan Range 24 Terrain Scan Density 210 Corruption Block 20 Armor Coverage 2400 Resistance: KI 30 Resistance: EM 15 Propulsion Shielding 90 Weapon Shielding 66 Weapon Cycling 25 Evasion (%) 50 Targeting Accuracy 24 Target Analysis 14 Core Analysis 12 Recoil Reduction 6 Matter Filtering 50 Kinecelleration 40 Offensive Hacking 24 Defensive Hacking 28 Authchip Count 3 Item Schematics ----------------- Imp. Titanium Leg | -7/Zion | Archive Drone Bay | -7/Zion | Archive Gauss Cannon | -7/Zion | Archive Thermal Shield | -7/Zion | Archive Gravmag System | -7/Zion | Archive Hvy. Plasma Cannon | -7/Zion | Archive Coolant Injector | -7/Zion | Archive Imp. Transmission Jammer | -7/Zion | Archive Imp. Thermal Shield | -7/Zion | Archive Flexi-carbon Leg | -7/Zion | Archive Xenon Bombardment Thruster | -7/Zion | Archive Hvy. Machine Gun | -7/Zion | Archive Phase Shifter | -7/Zion | Archive EM Disruption Field | -7/Zion | Archive Assault Drone Bay | -4/Zhirov | Free Exp. Heat Sink | -4/Zhirov | Free Exp. Optical Array | -4/Zhirov | Free Imp. Arc Thrower | -4/Zhirov | Free Robot Schematics ------------------ K-01 Serf | -7/Zion | Archive G-47 Trooper | -7/Zion | Archive W-25 Informer | -7/Zion | Archive X-82 Rainmaker | -7/Zion | Archive Fabricated ------------ X-82 Rainmaker | x2 | -6/Factory | Authchip X-82 Rainmaker | x2 | -6/Factory | Authchip Repaired ---------- Nothing Alien Tech Used ----------------- Integrated Dissipator Dimensional Node Initializer Transdimensional Reconstructor Achievements -------------- 50k Club Collateral Damage Corridor Of Doom Giant Slayer Great Explorer Punisher Special Delivery Victory By Combat Challenges ------------ None Game ------ Seed PointyAntimatterMount Manual? 0 Play Time 13:56:07 Cumulative 318.8 hours Start 2025.08.14 @ 23:39:25 End 2025.08.21 @ 14:15:07 Sessions 21 Manual Loads 0 Difficulty Rogue Special Mode None Game No. 251 Rogue 251 Adventurer 0 Explorer 0 Win Type 0 Total 3 Types 3/0/0/0/0/0/0/0/0/0 Lore% 80 Gallery% 68 Achievement% 60 Wizard Run 0 Options --------- Layout 1 ASCII 0 Keyboard 0 Movement Mouse Keybinds 0 Fullscreen 1 Font 24/Smallcaps Map View 50x35 Zoom Use 0% Tactical HUD 1 Map Filters NONE Filters NONE Steam 1 RUN: 2cfe753c-b5a8-42ee-a6f6-64835bb5e85d